{"text_format":"1","workbook":"xlsx","n_sheets":2,"sheets":["申込書（黄色塗り部分入力）","記入例"],"not_rendered":{"charts":0,"images":0,"macros":1,"external_links":0,"defined_names":24,"comments":0,"pivot_tables":0},"unopened":[],"bounds":{"document_bytes":16777216,"sheet_cells":100000,"rows_first":2000,"rows_last":500,"rows_between":2000,"halvings":0,"cell_chars":16384,"cell_head_chars":4096},"cells_cut":0,"cells_raw":0,"read":"whole","date_system":"1900"}

{"sheet":"申込書（黄色塗り部分入力）","index":0,"n_rows":198,"n_cols":158,"rows_kept":198,"cut":false,"hidden":false,"merged":[[64,85,64,123],[64,124,64,164],[43,42,44,54],[60,85,60,123],[61,85,61,123],[60,124,60,164],[51,85,51,101],[39,157,40,164],[39,124,40,142],[39,85,40,103],[6,76,7,79],[6,64,7,67],[33,62,33,83],[38,62,38,83],[37,62,37,83],[37,57,37,61],[41,42,42,54],[34,42,36,83],[39,42,40,83],[41,70,42,74],[41,75,42,83],[41,55,42,69],[33,57,33,61],[38,57,38,61],[37,42,38,56],[12,34,13,83],[6,68,7,71],[6,55,7,63],[6,49,7,54],[41,38,42,39],[41,36,42,37],[41,34,42,35],[37,104,38,122],[35,85,36,122],[37,85,38,103],[39,150,40,156],[30,97,31,103],[39,104,40,122],[30,104,31,117],[45,0,48,11],[32,97,33,103],[32,88,33,92],[32,104,33,117],[32,118,33,125],[32,128,33,129],[32,126,33,127],[32,130,33,142],[29,23,30,24],[29,6,30,22],[28,104,29,117],[28,118,29,125],[41,0,42,11],[46,14,46,29],[46,33,46,58],[47,12,48,83],[27,4,28,20],[67,43,68,59],[67,0,68,10],[67,60,68,70],[67,11,68,34],[67,124,68,140],[67,85,68,100],[67,141,68,164],[67,101,68,123],[65,85,65,123],[65,124,65,164],[67,35,68,42],[67,71,68,84],[1,80,2,83],[3,80,5,81],[3,82,5,83],[1,64,2,65],[1,66,2,67],[1,56,2,59],[3,56,5,57],[3,58,5,59],[1,48,2,55],[3,48,5,49],[3,50,5,51],[3,52,5,53],[3,54,5,55],[1,60,2,63],[3,62,5,63],[3,74,5,75],[3,68,5,69],[3,70,5,71],[3,78,5,79],[3,72,5,73],[3,66,5,67],[3,60,5,61],[1,68,2,79],[3,76,5,77],[1,42,2,47],[3,42,5,43],[3,44,5,45],[3,46,5,47],[0,0,1,35],[2,0,3,35],[6,29,6,36],[1,36,2,39],[3,36,5,37],[3,38,5,39],[1,40,2,41],[3,40,5,41],[3,64,5,65],[39,0,40,11],[33,33,34,36],[33,29,34,32],[33,0,34,11],[33,25,34,28],[31,4,32,5],[31,6,32,22],[33,12,34,20],[37,27,38,41],[33,37,34,40],[31,25,32,41],[39,12,40,23],[33,21,34,24],[39,24,40,26],[39,27,40,38],[39,39,40,41],[31,0,32,3],[31,23,32,24],[35,0,36,11],[35,12,36,26],[35,27,36,41],[29,0,30,3],[29,4,30,5],[27,21,28,24],[19,42,24,83],[30,42,32,83],[32,93,33,96],[15,34,17,83],[23,9,23,11],[23,12,23,38],[27,25,28,41],[26,42,28,83],[30,93,31,96],[21,96,22,100],[26,93,27,96],[25,0,26,11],[27,0,28,3],[25,42,25,57],[29,25,30,41],[29,62,29,83],[23,39,23,41],[21,85,22,86],[15,146,16,150],[17,154,18,156],[30,130,31,142],[19,154,20,156],[17,151,18,153],[23,113,24,115],[21,131,22,150],[28,88,29,92],[28,93,29,96],[19,93,20,95],[21,87,22,92],[19,87,20,92],[26,88,27,92],[17,87,18,92],[21,107,22,112],[15,131,16,139],[15,113,16,115],[15,143,16,145],[23,85,24,112],[28,97,29,103],[26,104,27,117],[21,101,22,103],[21,93,22,95],[28,130,29,142],[17,157,18,164],[17,140,18,142],[17,143,18,145],[18,69,18,83],[17,93,18,95],[17,96,18,100],[19,101,20,103],[19,96,20,100],[19,107,20,112],[19,119,20,124],[19,113,20,115],[17,119,18,124],[19,116,20,118],[19,131,20,150],[17,125,18,130],[17,107,18,112],[17,104,18,106],[17,113,18,115],[26,118,27,125],[27,128,27,129],[21,104,22,106],[9,87,10,92],[15,87,16,92],[9,96,10,100],[9,101,10,103],[11,101,12,103],[11,96,12,100],[15,96,16,100],[15,104,16,106],[15,107,16,112],[13,104,14,106],[13,107,14,112],[13,101,14,103],[15,101,16,103],[11,93,12,95],[5,113,5,118],[6,113,6,115],[5,101,6,103],[7,101,8,103],[11,113,12,115],[7,107,8,112],[9,107,10,112],[11,104,12,106],[11,107,12,112],[3,131,4,164],[5,125,6,130],[7,151,8,153],[9,131,10,139],[7,85,8,86],[11,87,12,92],[13,87,14,92],[13,93,14,95],[9,93,10,95],[5,140,6,142],[7,125,8,130],[9,125,10,130],[9,119,10,124],[7,154,8,156],[11,146,12,150],[9,143,10,145],[11,131,12,139],[13,131,14,139],[9,104,10,106],[9,116,10,118],[7,104,8,106],[7,157,8,164],[9,157,10,164],[5,143,6,145],[0,112,1,118],[0,119,1,136],[0,137,1,141],[0,142,1,164],[5,119,6,124],[5,157,6,164],[11,116,12,118],[13,116,14,118],[7,140,8,142],[7,143,8,145],[9,140,10,142],[6,154,6,156],[11,119,12,124],[6,116,6,118],[13,119,14,124],[13,151,14,153],[13,113,14,115],[7,119,8,124],[7,146,8,150],[9,146,10,150],[13,146,14,150],[5,131,6,139],[11,140,12,142],[6,151,6,153],[35,165,40,165],[11,143,12,145],[13,140,14,142],[13,143,14,145],[15,140,16,142],[19,151,20,153],[23,131,24,156],[39,143,40,149],[35,124,36,142],[23,119,24,124],[13,154,14,156],[15,151,16,153],[15,154,16,156],[17,131,18,139],[30,118,31,125],[15,116,16,118],[19,157,20,164],[11,125,12,130],[13,125,14,130],[15,125,16,130],[15,157,16,164],[11,157,12,164],[11,151,12,153],[11,154,12,156],[5,151,5,156],[5,146,6,150],[9,151,10,153],[9,154,10,156],[7,131,8,139],[17,146,18,150],[21,157,22,164],[37,157,38,164],[37,150,38,156],[35,143,36,149],[35,150,36,156],[23,157,24,164],[13,157,14,164],[26,130,27,142],[21,151,22,153],[21,154,22,156],[23,125,24,130],[37,124,38,142],[30,128,31,129],[37,143,38,149],[21,119,22,124],[30,126,31,127],[35,157,36,164],[15,119,16,124],[0,87,1,93],[0,94,1,111],[37,12,38,26],[33,41,34,41],[37,0,38,11],[41,20,42,21],[41,22,42,23],[11,85,12,86],[26,85,33,87],[41,85,42,103],[19,104,20,106],[19,85,20,86],[5,85,6,92],[5,93,6,95],[18,58,18,62],[8,34,10,83],[6,80,7,83],[6,72,7,75],[9,85,10,86],[15,93,16,95],[18,52,18,55],[26,97,27,103],[17,85,18,86],[15,85,16,86],[3,85,4,130],[21,113,22,115],[13,85,14,86],[26,126,26,129],[17,101,18,103],[30,88,31,92],[13,96,14,100],[21,116,22,118],[17,116,18,118],[23,116,24,118],[27,126,27,127],[21,125,22,130],[28,126,29,127],[28,128,29,129],[19,125,20,130],[7,93,8,95],[7,87,8,92],[5,104,6,106],[5,96,6,100],[7,113,8,115],[7,116,8,118],[9,113,10,115],[5,107,6,112],[7,96,8,100],[49,0,52,11],[41,12,42,15],[61,124,61,164],[63,85,63,123],[63,124,63,164],[56,124,56,164],[57,124,57,164],[58,124,58,164],[59,124,59,164],[56,85,56,123],[57,85,57,123],[58,85,58,123],[59,85,59,123],[62,85,62,123],[62,124,62,164],[43,0,44,11],[52,85,55,164],[44,85,49,86],[44,87,49,164],[41,16,42,17],[41,24,42,27],[41,28,42,31],[41,40,42,41],[41,32,42,33],[50,14,50,29],[50,33,50,58],[51,12,52,83],[43,55,44,83],[41,157,42,164],[41,150,42,156],[41,143,42,149],[41,104,42,122],[41,124,42,142],[41,18,42,19]]}
["電 気 使 用 申 込 書（高 圧）",null,null,null,null,null,null,null,null,null,null,null,null,null,null,null,null,null,null,null,null,null,null,null,null,null,null,null,null,null,null,null,null,null,null,null,null,null,null,null,null,null,null,null,null,null,null,null,null,null,null,null,null,null,null,null,null,null,null,null,null,null,null,null,null,null,null,null,null,null,null,null,null,null,null,null,null,null,null,null,null,null,null,null,null,null,null,"Web工事番号",null,null,null,null,null,null,null,null,null,null,null,null,null,null,null,null,null,null,null,null,null,null,null,null,"受付No．",null,null,null,null,null,null,null,null,null,null,null,null,null,null,null,null,null,null,null,null,null,null,null,null,"受付日",null,null,null,null,"年　　　月　　　日　"]
[null,null,null,null,null,null,null,null,null,null,null,null,null,null,null,null,null,null,null,null,null,null,null,null,null,null,null,null,null,null,null,null,null,null,null,null,"エリア",null,null,null,"電\n圧",null,"営業所",null,null,null,null,null,"住所コード",null,null,null,null,null,null,null,"街区",null,null,null,"住居",null,null,null,"枝",null,"識\n別",null,"固定番号",null,null,null,null,null,null,null,null,null,null,null,"日程"]
["中部電力ミライズ株式会社　宛"]
[null,null,null,null,null,null,null,null,null,null,null,null,null,null,null,null,null,null,null,null,null,null,null,null,null,null,null,null,null,null,null,null,null,null,null,null,0,null,4,null,1,null,null,null,null,null,null,null,null,null,null,null,null,null,null,null,null,null,null,null,null,null,null,null,null,null,null,null,0,null,0,null,0,null,0,null,0,null,0,null,null,null,null,null,null,"契約受電設備（受電用変圧器）内訳",null,null,null,null,null,null,null,null,null,null,null,null,null,null,null,null,null,null,null,null,null,null,null,null,null,null,null,null,null,null,null,null,null,null,null,null,null,null,null,null,null,null,null,null,null,"契約負荷設備（高圧）"]
[]
[null,null,null,null,null,null,null,null,null,null,null,null,null,null,null,null,null,null,null,null,null,null,null,null,null,null,null,null,null,null,null,null,null,null,null,null,null,null,null,null,null,null,null,null,null,null,null,null,null,null,null,null,null,null,null,null,null,null,null,null,null,null,null,null,null,null,null,null,null,null,null,null,null,null,null,null,null,null,null,null,null,null,null,null,null,"電圧\nkV",null,null,null,null,null,null,null,"相",null,null,"結線",null,null,null,null,"ｾｯﾄ",null,null,"差替",null,null,"容量\nkVA",null,null,null,null,null,"台数",null,null,null,null,null,"既設合計\n容量kVA",null,null,null,null,null,"今後合計\n容量kVA",null,null,null,null,null,"機器名",null,null,null,null,null,null,null,null,"ｾｯﾄ",null,null,"差替",null,null,"容量",null,null,null,null,"台数",null,null,null,null,null,"今後の合計\n容量kVA"]
[null,null,null,null,null,null,null,null,null,null,null,null,null,null,null,null,null,null,null,null,null,null,null,null,null,null,null,null,null,"（申込者）",null,null,null,null,null,null,null,null,null,null,null,null,null,null,null,null,null,null,null,"申込日",null,null,null,null,null,null,null,null,null,null,null,null,null,null,"年",null,null,null,null,null,null,null,"月",null,null,null,null,null,null,null,"日",null,null,null,null,null,null,null,null,null,null,null,null,null,null,null,null,null,null,null,null,null,null,null,null,null,null,null,null,null,null,null,null,"旧",null,null,"新",null,null,null,null,null,null,null,null,null,null,null,null,null,null,null,null,null,null,null,null,null,null,null,null,null,null,null,null,null,null,null,null,null,null,"旧",null,null,"新"]
[null,null,null,null,null,null,null,null,null,null,null,null,null,null,null,null,null,null,null,null,null,null,null,null,null,null,null,null,null,null,null,null,null,null,null,null,null,null,null,null,null,null,null,null,null,null,null,null,null,null,null,null,null,null,null,null,null,null,null,null,null,null,null,null,null,null,null,null,null,null,null,null,null,null,null,null,null,null,null,null,null,null,null,null,null,"6/",null,null,null,null,null,null,null,null,null,null,null,null,null,null,null,null,null,null,null,null,null,null,null,null,null,null,null,null,null,null,null,null,null,{"$f":"IF(DD8*DJ8=0,\"\",DD8*DJ8)","v":""},null,null,null,null,null,{"$f":"IF(DD8*DM8=0,\"\",DD8*DM8)","v":""}]
[null,null,null,null,null,null,null,null,null,null,null,null,null,null,null,null,null,null,null,null,null,null,null,null,null,null,null,null,null,"ご住所"]
[null,null,null,null,null,null,null,null,null,null,null,null,null,null,null,null,null,null,null,null,null,null,null,null,null,null,null,null,null,null,null,null,null,null,null,null,null,null,null,null,null,null,null,null,null,null,null,null,null,null,null,null,null,null,null,null,null,null,null,null,null,null,null,null,null,null,null,null,null,null,null,null,null,null,null,null,null,null,null,null,null,null,null,null,null,"6/",null,null,null,null,null,null,null,null,null,null,null,null,null,null,null,null,null,null,null,null,null,null,null,null,null,null,null,null,null,null,null,null,null,{"$f":"IF(DD10*DJ10=0,\"\",DD10*DJ10)","v":""},null,null,null,null,null,{"$f":"IF(DD10*DM10=0,\"\",DD10*DM10)","v":""}]
[]
[null,null,null,null,null,null,null,null,null,null,null,null,null,null,null,null,null,null,null,null,null,null,null,null,null,null,null,null,null,"お客さま名",null,null,null,null,null,null,null,null,null,null,null,null,null,null,null,null,null,null,null,null,null,null,null,null,null,null,null,null,null,null,null,null,null,null,null,null,null,null,null,null,null,null,null,null,null,null,null,null,null,null,null,null,null,null,null,"6/",null,null,null,null,null,null,null,null,null,null,null,null,null,null,null,null,null,null,null,null,null,null,null,null,null,null,null,null,null,null,null,null,null,{"$f":"IF(DD12*DJ12=0,\"\",DD12*DJ12)","v":""},null,null,null,null,null,{"$f":"IF(DD12*DM12=0,\"\",DD12*DM12)","v":""}]
[]
[null,null,null,null,null,null,null,null,null,null,null,null,null,null,null,null,null,null,null,null,null,null,null,null,null,null,null,null,null,null,null,null,null,null,null,null,null,null,null,null,null,null,null,null,null,null,null,null,null,null,null,null,null,null,null,null,null,null,null,null,null,null,null,null,null,null,null,null,null,null,null,null,null,null,null,null,null,null,null,null,null,null,null,null,null,"6/",null,null,null,null,null,null,null,null,null,null,null,null,null,null,null,null,null,null,null,null,null,null,null,null,null,null,null,null,null,null,null,null,null,{"$f":"IF(DD14*DJ14=0,\"\",DD14*DJ14)","v":""},null,null,null,null,null,{"$f":"IF(DD14*DM14=0,\"\",DD14*DM14)","v":""}]
[null,null,null,null,null,null,null,null,null,null,null,null,null,null,null,null,null,null,null,null,null,null,null,null,null,null,null,null,null,"（代表者名）"]
[null,null,null,null,null,null,null,null,null,null,null,null,null,null,null,null,null,null,null,null,null,null,null,null,null,null,null,null,null,null,null,null,null,null,null,null,null,null,null,null,null,null,null,null,null,null,null,null,null,null,null,null,null,null,null,null,null,null,null,null,null,null,null,null,null,null,null,null,null,null,null,null,null,null,null,null,null,null,null,null,null,null,null,null,null,"6/",null,null,null,null,null,null,null,null,null,null,null,null,null,null,null,null,null,null,null,null,null,null,null,null,null,null,null,null,null,null,null,null,null,{"$f":"IF(DD16*DJ16=0,\"\",DD16*DJ16)","v":""},null,null,null,null,null,{"$f":"IF(DD16*DM16=0,\"\",DD16*DM16)","v":""}]
[]
["（申込内容）",null,null,null,null,null,null,null,null,null,null,null,null,null,null,null,null,null,null,null,null,null,null,null,null,null,null,null,null,null,null,null,null,null,null,null,null,null,null,null,null,null,null,null,null,null,null,null,null,null,null,null,null,null,null,null,null,null,null,null,null,null,null,null,null,null,null,null,null,null,null,null,null,null,null,null,null,null,null,null,null,null,null,null,null,"6/",null,null,null,null,null,null,null,null,null,null,null,null,null,null,null,null,null,null,null,null,null,null,null,null,null,null,null,null,null,null,null,null,null,{"$f":"IF(DD18*DJ18=0,\"\",DD18*DJ18)","v":""},null,null,null,null,null,{"$f":"IF(DD18*DM18=0,\"\",DD18*DM18)","v":""}]
[null,null,null,null,null,null,null,null,null,null,null,null,null,null,null,null,null,null,null,null,null,null,null,null,null,null,null,null,null,null,null,null,null,null,null,null,null,null,null,null,null,null,null,"需要場所",null,null,null,null,null,null,"〒",null,null,null,null,null,"-",null,null,null,null,null,null,null,"ＴＥＬ"]
[null,null,null,null,null,null,null,null,null,null,null,null,null,null,null,null,null,null,null,null,null,null,null,null,null,null,null,null,null,null,null,null,null,null,null,null,null,null,null,null,null,null,null,null,null,null,null,null,null,null,null,null,null,null,null,null,null,null,null,null,null,null,null,null,null,null,null,null,null,null,null,null,null,null,null,null,null,null,null,null,null,null,null,null,null,"6/",null,null,null,null,null,null,null,null,null,null,null,null,null,null,null,null,null,null,null,null,null,null,null,null,null,null,null,null,null,null,null,null,null,{"$f":"IF(DD20*DJ20=0,\"\",DD20*DJ20)","v":""},null,null,null,null,null,{"$f":"IF(DD20*DM20=0,\"\",DD20*DM20)","v":""},null,null,null,null,null,"小計②",null,null,null,null,null,null,null,null,null,null,null,null,null,null,null,null,null,null,null,{"$f":"IF(SUM(EV8:EV18)=0,\"\",SUM(EV8:EV18))","v":""},null,null,{"$f":"IF(SUM(EY8:EY18)=0,\"\",SUM(EY8:EY18))","v":""},null,null,{"$f":"SUM(FB8:FI19)","v":0}]
[]
[null,null,null,null,null,null,null,null,null,null,null,null,null,null,null,null,null,null,null,null,null,null,null,null,null,null,null,null,null,null,null,null,null,null,null,null,null,null,null,null,null,null,null,null,null,null,null,null,null,null,null,null,null,null,null,null,null,null,null,null,null,null,null,null,null,null,null,null,null,null,null,null,null,null,null,null,null,null,null,null,null,null,null,null,null,"6/",null,null,null,null,null,null,null,null,null,null,null,null,null,null,null,null,null,null,null,null,null,null,null,null,null,null,null,null,null,null,null,null,null,{"$f":"IF(DD22*DJ22=0,\"\",DD22*DJ22)","v":""},null,null,null,null,null,{"$f":"IF(DD22*DM22=0,\"\",DD22*DM22)","v":""},null,null,null,null,null,"③（①＋②）",null,null,null,null,null,null,null,null,null,null,null,null,null,null,null,null,null,null,null,null,null,null,null,null,null,{"$f":"DV24+FB20","v":{"$error":"#VALUE!"}}]
[]
[null,null,null,null,null,null,null,null,null,"（",null,null,null,null,null,null,null,null,null,null,null,null,null,null,null,null,null,null,null,null,null,null,null,null,null,null,null,null,null,"）",null,null,null,null,null,null,null,null,null,null,null,null,null,null,null,null,null,null,null,null,null,null,null,null,null,null,null,null,null,null,null,null,null,null,null,null,null,null,null,null,null,null,null,null,null,"小計①",null,null,null,null,null,null,null,null,null,null,null,null,null,null,null,null,null,null,null,null,null,null,null,null,null,null,null,{"$f":"IF(SUM(DJ8:DJ22)=0,\"\",SUM(DJ8:DJ22))","v":""},null,null,{"$f":"IF(SUM(DM8:DM22)=0,\"\",SUM(DM8:DM22))","v":""},null,null,{"$f":"IF(SUM(DP8:DP22)=0,\"\",SUM(DP8:DP22))","v":""},null,null,null,null,null,{"$f":"IF(SUM(DV8:DV22)=0,\"\",SUM(DV8:DV22))","v":""},null,null,null,null,null,"計算電力値(③×容量圧縮率) (ｋＷ)",null,null,null,null,null,null,null,null,null,null,null,null,null,null,null,null,null,null,null,null,null,null,null,null,null,{"$f":"IF(FB22<0,FB22*0.8,IF(FB22<50,40+(FB22-50)*0.8,IF(FB22<=100,40+(FB22-50)*0.7,IF(FB22<=300,75+(FB22-100)*0.6,IF(FB22<=600,195+(FB22-300)*0.5,IF(FB22>600,345+(FB22-600)*0.4))))))","v":{"$error":"#VALUE!"}}]
[]
["契約継続割引",null,null,null,null,null,null,null,null,null,null,null,null,null,null,null,null,null,null,null,null,null,null,null,null,null,null,null,null,null,null,null,null,null,null,null,null,null,null,null,null,null,"　工場名・事業所名等"]
[null,null,null,null,null,null,null,null,null,null,null,null,null,null,null,null,null,null,null,null,null,null,null,null,null,null,null,null,null,null,null,null,null,null,null,null,null,null,null,null,null,null,null,null,null,null,null,null,null,null,null,null,null,null,null,null,null,null,null,null,null,null,null,null,null,null,null,null,null,null,null,null,null,null,null,null,null,null,null,null,null,null,null,null,null,"発電設備",null,null,"電圧\nkV",null,null,null,null,"連系\n有無",null,null,null,"運転形態",null,null,null,null,null,null,"種類",null,null,null,null,null,null,null,null,null,null,null,null,null,"出力\nkW",null,null,null,null,null,null,null,"台数",null,null,null,"合計\nkW"]
["業種",null,null,null,null,null,null,null,null,null,null,null,null,null,null,null,null,null,null,null,null,"用途",null,null,null,null,null,null,null,null,null,null,null,null,null,null,null,null,null,null,null,null,null,null,null,null,null,null,null,null,null,null,null,null,null,null,null,null,null,null,null,null,null,null,null,null,null,null,null,null,null,null,null,null,null,null,null,null,null,null,null,null,null,null,null,null,null,null,null,null,null,null,null,null,null,null,null,null,null,null,null,null,null,null,null,null,null,null,null,null,null,null,null,null,null,null,null,null,null,null,null,null,null,null,null,null,"旧",null,"新"]
[]
["契約\n種別",null,null,null,"旧",null,null,null,null,null,null,null,null,null,null,null,null,null,null,null,null,null,null,"新",null,null,null,null,null,null,null,null,null,null,null,null,null,null,null,null,null,null,"　お客さま連絡場所",null,null,null,null,null,null,null,null,null,null,null,null,null,null,"ＴＥＬ"]
[]
["料金\nプラン",null,null,null,"旧",null,null,null,null,null,null,null,null,null,null,null,null,null,null,null,null,null,null,"新"]
[]
["使用開始希望日",null,null,null,null,null,null,null,null,null,null,null,null,null,null,null,null,null,null,null,null,"年",null,null,null,null,null,null,null,"月",null,null,null,null,null,null,null,"日",null,null,null,null,"　お客さま連絡者名",null,null,null,null,null,null,null,null,null,null,null,null,null,null,"Ｅメール"]
[]
[null,null,null,null,null,null,null,null,null,null,null,null,"既契約",null,null,null,null,null,null,null,null,null,null,null,null,null,null,"申込み",null,null,null,null,null,null,null,null,null,null,null,null,null,null,null,null,null,null,null,null,null,null,null,null,null,null,null,null,null,null,null,null,null,null,null,null,null,null,null,null,null,null,null,null,null,null,null,null,null,null,null,null,null,null,null,null,null,"主要動力負荷設備",null,null,null,null,null,null,null,null,null,null,null,null,null,null,null,null,null,null,null,null,null,null,null,null,null,null,null,null,null,null,null,null,null,null,null,null,null,null,"増加負荷設備（電灯含む）",null,null,null,null,null,null,null,null,null,null,null,null,null,null,null,null,null,null,"容量",null,null,null,null,null,null,"台数",null,null,null,null,null,null,"合計容量"]
[]
["低圧契約からの\n契約種別種変",null,null,null,null,null,null,null,null,null,null,null,null,null,null,null,null,null,null,null,null,null,null,null,null,null,null,null,null,null,null,null,null,null,null,null,null,null,null,null,null,null,"　電気主任技術者",null,null,null,null,null,null,null,null,null,null,null,null,null,null,"ＴＥＬ"]
[null,null,null,null,null,null,null,null,null,null,null,null,null,null,null,null,null,null,null,null,null,null,null,null,null,null,null,null,null,null,null,null,null,null,null,null,null,null,null,null,null,null,null,null,null,null,null,null,null,null,null,null,null,null,null,null,null,"携　帯"]
["協議契約電力(*1)",null,null,null,null,null,null,null,null,null,null,null,null,null,null,null,null,null,null,null,null,null,null,null,"kW",null,null,null,null,null,null,null,null,null,null,null,null,null,null,"kW"]
[]
[" 契約使用期間(*2)",null,null,null,null,null,null,null,null,null,null,null,null,null,null,null,"年",null,null,null,"月",null,null,null,"日～",null,null,null,null,null,null,null,"年",null,null,null,"月",null,null,null,"日",null,"供給電気方式",null,null,null,null,null,null,null,null,null,null,null,null,"　　交流３相３線式　　　　　　",null,null,null,null,null,null,null,null,null,null,null,null,null,null,null,null,null,null,null,"ヘルツ"]
[]
["電気料金\nお支払い方法",null,null,null,null,null,null,null,null,null,null,null,null,null,null,null,null,null,null,null,null,null,null,null,null,null,null,null,null,null,null,null,null,null,null,null,null,null,null,null,null,null,"供給電圧",null,null,null,null,null,null,null,null,null,null,null,null,"　　受電 6 kV  計量 6 kV"]
[null,null,null,null,null,null,null,null,null,null,null,null,null,null,null,null,null,null,null,null,null,null,null,null,null,null,null,null,null,null,null,null,null,null,null,null,null,null,null,null,null,null,null,null,null,null,null,null,null,null,null,null,null,null,null,null,null,null,null,null,null,null,null,null,null,null,null,null,null,null,null,null,null,null,null,null,null,null,null,null,null,null,null,null,null,"ご要望等"]
["ご請求書送付先"]
[null,null,null,null,null,null,null,null,null,null,null,null,"〒",null,null,null,null,null,null,null,null,null,null,null,null,null,null,null,null,null,"TEL"]
[]
[]
["電気ご使用量の\nお知らせ送付先"]
[null,null,null,null,null,null,null,null,null,null,null,null,"〒",null,null,null,null,null,null,null,null,null,null,null,null,null,null,null,null,null,"TEL"]
[null,null,null,null,null,null,null,null,null,null,null,null,null,null,null,null,null,null,null,null,null,null,null,null,null,null,null,null,null,null,null,null,null,null,null,null,null,null,null,null,null,null,null,null,null,null,null,null,null,null,null,null,null,null,null,null,null,null,null,null,null,null,null,null,null,null,null,null,null,null,null,null,null,null,null,null,null,null,null,null,null,null,null,null,null,"【個人情報の利用目的】"]
[null,null,null,null,null,null,null,null,null,null,null,null,null,null,null,null,null,null,null,null,null,null,null,null,null,null,null,null,null,null,null,null,null,null,null,null,null,null,null,null,null,null,null,null,null,null,null,null,null,null,null,null,null,null,null,null,null,null,null,null,null,null,null,null,null,null,null,null,null,null,null,null,null,null,null,null,null,null,null,null,null,null,null,null,null,"　当社は、当社が取得・保有する個人情報について、次の事業において、契約の媒介・締結・履行、資産・設備等の形成・保全、関連するアフターサービス、商品・サービスの改善・開発、商品・サービスに関するダイレクトメール・電話・訪問等によるご案内、アンケートの実施、その他これらに付随する業務を行うために必要な範囲内において利用させていただきます。\n　なお、利用目的が法令等に基づき限定されている個人情報は、法令等で認められた場合を除き、法令等に基づき限定されている目的以外では利用いたしません。"]
["*1  契約電力を協議により定めるお申込みの場合はご記入ください。　*2  臨時電力の場合は必要事項をご記入ください。"]
[null,"◇既契約が低圧のお客さまで、電灯・動力の契約電力の合計値が50kW以上となりますか。"]
[]
[null,"◇上記でいいえをお答えのお客さま、既契約が高圧・特別高圧のお客さま、新たにご契約されるお客さま",null,null,null,null,null,null,null,null,null,null,null,null,null,null,null,null,null,null,null,null,null,null,null,null,null,null,null,null,null,null,null,null,null,null,null,null,null,null,null,null,null,null,null,null,null,null,null,null,null,null,null,null,null,null,null,null,null,null,null,null,null,null,null,null,null,null,null,null,null,null,null,null,null,null,null,null,null,null,null,null,null,null,null,"１　電気事業　                                                　",null,null,null,null,null,null,null,null,null,null,null,null,null,null,null,null,null,null,null,null,null,null,null,null,null,null,null,null,null,null,null,null,null,null,null,null,null,null,"９　エネルギー利用、環境および前各号に関する調査、エンジニアリング"]
[null,null,"最大需要電力が50kW以上になると予想しますか。",null,null,null,null,null,null,null,null,null,null,null,null,null,null,null,null,null,null,null,null,null,null,null,null,null,null,null,null,null,null,null,null,null,null,null,null,null,null,null,null,null,null,null,null,null,null,null,null,null,null,null,null,null,null,null,null,null,null,null,null,null,null,null,null,null,null,null,null,null,null,null,null,null,null,null,null,null,null,null,null,null,null,"２　ガス事業",null,null,null,null,null,null,null,null,null,null,null,null,null,null,null,null,null,null,null,null,null,null,null,null,null,null,null,null,null,null,null,null,null,null,null,null,null,null,"　　およびコンサルティング"]
[null,null,null,null,null,null,null,null,null,null,null,null,null,null,null,null,null,null,null,null,null,null,null,null,null,null,null,null,null,null,null,null,null,null,null,null,null,null,null,null,null,null,null,null,null,null,null,null,null,null,null,null,null,null,null,null,null,null,null,null,null,null,null,null,null,null,null,null,null,null,null,null,null,null,null,null,null,null,null,null,null,null,null,null,null,"３　エネルギー関連の機械器具および設備の製造、販売、賃貸、リー",null,null,null,null,null,null,null,null,null,null,null,null,null,null,null,null,null,null,null,null,null,null,null,null,null,null,null,null,null,null,null,null,null,null,null,null,null,null,"10　法人および個人向け各種支援サービスの提供および斡旋"]
[null,"◇最大需要電力が50kW未満になると予想されるお客さまについては、詳細な契約負荷設備のご提出をお願",null,null,null,null,null,null,null,null,null,null,null,null,null,null,null,null,null,null,null,null,null,null,null,null,null,null,null,null,null,null,null,null,null,null,null,null,null,null,null,null,null,null,null,null,null,null,null,null,null,null,null,null,null,null,null,null,null,null,null,null,null,null,null,null,null,null,null,null,null,null,null,null,null,null,null,null,null,null,null,null,null,null,null,"　　ス、修理、運転および保守",null,null,null,null,null,null,null,null,null,null,null,null,null,null,null,null,null,null,null,null,null,null,null,null,null,null,null,null,null,null,null,null,null,null,null,null,null,null,"11　会員向け優待サービスの提供および斡旋"]
[null,"　いする場合がございます。",null,null,null,null,null,null,null,null,null,null,null,null,null,null,null,null,null,null,null,null,null,null,null,null,null,null,null,null,null,null,null,null,null,null,null,null,null,null,null,null,null,null,null,null,null,null,null,null,null,null,null,null,null,null,null,null,null,null,null,null,null,null,null,null,null,null,null,null,null,null,null,null,null,null,null,null,null,null,null,null,null,null,null,"４　蒸気、温水、冷水等の熱供給に関する事業　　　　　　　　　　　　　",null,null,null,null,null,null,null,null,null,null,null,null,null,null,null,null,null,null,null,null,null,null,null,null,null,null,null,null,null,null,null,null,null,null,null,null,null,null,"12　銀行代理業、電子決済等代行業その他金融サービス業"]
[null,null,null,null,null,null,null,null,null,null,null,null,null,null,null,null,null,null,null,null,null,null,null,null,null,null,null,null,null,null,null,null,null,null,null,null,null,null,null,null,null,null,null,null,null,null,null,null,null,null,null,null,null,null,null,null,null,null,null,null,null,null,null,null,null,null,null,null,null,null,null,null,null,null,null,null,null,null,null,null,null,null,null,null,null,"５　電気通信事業法に定める電気通信事業",null,null,null,null,null,null,null,null,null,null,null,null,null,null,null,null,null,null,null,null,null,null,null,null,null,null,null,null,null,null,null,null,null,null,null,null,null,null,"13　割賦販売法に定める信用購入あっせん"]
[null,"◇臨時電力の場合",null,null,null,null,null,null,null,null,null,null,null,null,null,null,null,null,null,null,null,null,null,null,null,null,null,null,null,null,null,null,null,null,null,null,null,null,null,null,null,null,null,null,null,null,null,null,null,null,null,null,null,null,null,null,null,null,null,null,null,null,null,null,null,null,null,null,null,null,null,null,null,null,null,null,null,null,null,null,null,null,null,null,null,"６　各種情報の収集、分析、処理、加工、提供および販売に関する事業",null,null,null,null,null,null,null,null,null,null,null,null,null,null,null,null,null,null,null,null,null,null,null,null,null,null,null,null,null,null,null,null,null,null,null,null,null,null,"14　資金決済に関する法律に定める前払式支払手段の発行および資金移動業"]
[null,"　→契約電力は、契約受電設備のみによって決定することを希望しますか。　",null,null,null,null,null,null,null,null,null,null,null,null,null,null,null,null,null,null,null,null,null,null,null,null,null,null,null,null,null,null,null,null,null,null,null,null,null,null,null,null,null,null,null,null,null,null,null,null,null,null,null,null,null,null,null,null,null,null,null,null,null,null,null,null,null,null,null,null,null,null,null,null,null,null,null,null,null,null,null,null,null,null,null,"　　ならびに広告事業",null,null,null,null,null,null,null,null,null,null,null,null,null,null,null,null,null,null,null,null,null,null,null,null,null,null,null,null,null,null,null,null,null,null,null,null,null,null,"15　損害保険代理業、自動車損害賠償保障法に基づく保険代理業および生命"]
[null,null,null,null,null,null,null,null,null,null,null,null,null,null,null,null,null,null,null,null,null,null,null,null,null,null,null,null,null,null,null,null,null,null,null,null,null,null,null,null,null,null,null,null,null,null,null,null,null,null,null,null,null,null,null,null,null,null,null,null,null,null,null,null,null,null,null,null,null,null,null,null,null,null,null,null,null,null,null,null,null,null,null,null,null,"７　データプラットフォーム事業",null,null,null,null,null,null,null,null,null,null,null,null,null,null,null,null,null,null,null,null,null,null,null,null,null,null,null,null,null,null,null,null,null,null,null,null,null,null,"　　保険募集業その他保険媒介代理業、保険サービス業"]
[null,null,null,null,null,null,null,null,null,null,null,null,null,null,null,null,null,null,null,null,null,null,null,null,null,null,null,null,null,null,null,null,null,null,null,null,null,null,null,null,null,null,null,null,null,null,null,null,null,null,null,null,null,null,null,null,null,null,null,null,null,null,null,null,null,null,null,null,null,null,null,null,null,null,null,null,null,null,null,null,null,null,null,null,null,"８　コミュニティサポートインフラ事業",null,null,null,null,null,null,null,null,null,null,null,null,null,null,null,null,null,null,null,null,null,null,null,null,null,null,null,null,null,null,null,null,null,null,null,null,null,null,"16　前各号に附帯関連する事業"]
[]
["施工者\n（工事店名）",null,null,null,null,null,null,null,null,null,null,null,null,null,null,null,null,null,null,null,null,null,null,null,null,null,null,null,null,null,null,null,null,null,null,"担当者",null,null,null,null,null,null,null,null,null,null,null,null,null,null,null,null,null,null,null,null,null,null,null,null,"工事店コード",null,null,null,null,null,null,null,null,null,null,null,null,null,null,null,null,null,null,null,null,null,null,null,null,"ＴＥＬ",null,null,null,null,null,null,null,null,null,null,null,null,null,null,null,null,null,null,null,null,null,null,null,null,null,null,null,null,null,null,null,null,null,null,null,null,null,null,"Ｅメールアドレス"]
[]
["営２５０(ａ)　保管期限失効後８年"]
[]
[]
[]
[]
[]
[]
[]
[]
[]
[]
[]
[]
[]
[]
[]
[]
[]
[]
[]
[]
[]
[]
[]
[]
[]
[]
[]
[]
[]
[]
[]
[]
[]
[]
[]
[]
[]
[]
[]
[]
[]
[]
[]
[]
[]
[]
[]
[]
[]
[]
[]
[]
[]
[]
[]
[]
[]
[]
[null,null,null,null,null,null,null,null,null,null,null,null,null,null,null,null,null,null,null,null,null,null,null,null,null,null,null,null,null,null,null,null,null,null,null,null,null,null,null,null,null,null,null,null,null,null,null,null,null,null,null,null,null,null,null,null,null,null,6]
[null,null,null,null,null,null,null,null,null,null,null,null,null,null,"高圧業務用電力",null,null,null,null,null,null,null,null,null,null,null,null,null,null,null,"ＦＲプランＡ",null,null,null,null,null,null,null,null,null,null,null,null,null,null,null,null,null,null,null,null,null,null,null,null,null,null,null,0.1,null,null,null,null,null,null,null,null,null,"単結線"]
[null,null,null,null,null,null,null,null,null,null,null,null,null,null,"高圧電力",null,null,null,null,null,null,null,null,null,null,null,null,null,null,null,"ＦＲプランＢ",null,null,null,null,null,null,null,null,null,null,null,null,null,null,null,null,null,null,null,null,null,null,null,null,null,null,null,0.2,null,null,null,null,null,null,null,null,null,"Δ－Δ"]
[null,null,null,null,null,null,null,null,null,null,null,null,null,null,"臨時電力（高圧業務用電力）",null,null,null,null,null,null,null,null,null,null,null,null,null,null,null,"ＦＲプランＣ",null,null,null,null,null,null,null,null,null,null,null,null,null,null,null,null,null,null,null,null,null,null,null,null,null,null,null,"0.1,0.2",null,null,null,null,null,null,null,null,null,"Ｙ－Δ"]
[null,null,null,null,null,null,null,null,null,null,null,null,null,null,"臨時電力（高圧電力500kW未満）",null,null,null,null,null,null,null,null,null,null,null,null,null,null,null,"ＷＥプランＡ",null,null,null,null,null,null,null,null,null,null,null,null,null,null,null,null,null,null,null,null,null,null,null,null,null,null,null,0.4,null,null,null,null,null,null,null,null,null,"Ｖ"]
[null,null,null,null,null,null,null,null,null,null,null,null,null,null,"予備電力（予備線）",null,null,null,null,null,null,null,null,null,null,null,null,null,null,null,"ＷＥプランＢ",null,null,null,null,null,null,null,null,null,null,null,null,null,null,null,null,null,null,null,null,null,null,null,null,null,null,null,3]
[null,null,null,null,null,null,null,null,null,null,null,null,null,null,"予備電力（予備電源）",null,null,null,null,null,null,null,null,null,null,null,null,null,null,null,"ＷＥプランＣ",null,null,null,null,null,null,null,null,null,null,null,null,null,null,null,null,null,null,null,null,null,null,null,null,null,null,null,null,null,null,null,null,null,null,null,null,null,"屋外"]
[null,null,null,null,null,null,null,null,null,null,null,null,null,null,"業務用自家発補給電力",null,null,null,null,null,null,null,null,null,null,null,null,null,null,null,"ＴＯＵ",null,null,null,null,null,null,null,null,null,null,null,null,null,null,null,null,null,null,null,null,null,null,null,null,null,null,null,null,null,null,null,null,null,null,null,null,null,"その他（屋内等）"]
[null,null,null,null,null,null,null,null,null,null,null,null,null,null,"自家発補給電力",null,null,null,null,null,null,null,null,null,null,null,null,null,null,null,"ＴＯＵ２"]
[null,null,null,null,null,null,null,null,null,null,null,null,null,null,null,null,null,null,null,null,null,null,null,null,null,null,null,null,null,null,"第１種プランＬ",null,null,null,null,null,null,null,null,null,null,null,null,null,null,null,null,null,null,null,null,null,null,null,null,null,null,null,null,null,null,null,null,null,null,null,null,null,"第１柱　樹脂ＢＯＸ"]
[null,null,null,null,null,null,null,null,null,null,null,null,null,null,null,null,null,null,null,null,null,null,null,null,null,null,null,null,null,null,"第１種プランＨ",null,null,null,null,null,null,null,null,null,null,null,null,null,null,null,null,null,null,null,null,null,null,null,null,null,null,null,null,null,null,null,null,null,null,null,null,null,"第１柱　金属ＢＯＸ"]
[null,null,null,null,null,null,null,null,null,null,null,null,null,null,"（業務用電力のお客さま）",null,null,null,null,null,null,null,null,null,null,null,null,null,null,null,"第２種プランＬ",null,null,null,null,null,null,null,null,null,null,null,null,null,null,null,null,null,null,null,null,null,null,null,null,null,null,null,null,null,null,null,null,null,null,null,null,null,"屋外（屋上含まず）　樹脂ＢＯＸ"]
[null,null,null,null,null,null,null,null,null,null,null,null,null,null,"劇場・娯楽",null,null,null,null,null,null,null,null,null,null,null,null,null,null,null,"第２種プランＨ",null,null,null,null,null,null,null,null,null,null,null,null,null,null,null,null,null,null,null,null,null,null,null,null,null,null,null,null,null,null,null,null,null,null,null,null,null,"屋外（屋上含まず）　金属ＢＯＸ"]
[null,null,null,null,null,null,null,null,null,null,null,null,null,null,"医療・保険",null,null,null,null,null,null,null,null,null,null,null,null,null,null,null,null,null,null,null,null,null,null,null,null,null,null,null,null,null,null,null,null,null,null,null,null,null,null,null,null,null,null,null,null,null,null,null,null,null,null,null,null,null,"屋外（屋上含まず）　キュービクル内樹脂ＢＯＸ（メーターキュービクル含む）"]
[null,null,null,null,null,null,null,null,null,null,null,null,null,null,"新聞・出版",null,null,null,null,null,null,null,null,null,null,null,null,null,null,null,null,null,null,null,null,null,null,null,null,null,null,null,null,null,null,null,null,null,null,null,null,null,null,null,null,null,null,null,null,null,null,null,null,null,null,null,null,null,"屋外（屋上含まず）　キュービクル内金属ＢＯＸ"]
[null,null,null,null,null,null,null,null,null,null,null,null,null,null,"学校・研究所",null,null,null,null,null,null,null,null,null,null,null,null,null,null,null,null,null,null,null,null,null,null,null,null,null,null,null,null,null,null,null,null,null,null,null,null,null,null,null,null,null,null,null,null,null,null,null,null,null,null,null,null,null,"屋内（地下含まず）"]
[null,null,null,null,null,null,null,null,null,null,null,null,null,null,"金融・保険・リース業",null,null,null,null,null,null,null,null,null,null,null,null,null,null,null,null,null,null,null,null,null,null,null,null,null,null,null,null,null,null,null,null,null,null,null,null,null,null,null,null,null,null,null,null,null,null,null,null,null,null,null,null,null,"屋上"]
[null,null,null,null,null,null,null,null,null,null,null,null,null,null,"旅館・ホテル",null,null,null,null,null,null,null,null,null,null,null,null,null,null,null,null,null,null,null,null,null,null,null,null,null,null,null,null,null,null,null,null,null,null,null,null,null,null,null,null,null,null,null,null,null,null,null,null,null,null,null,null,null,"判別不可（地下に設置されている場合も含む）"]
[null,null,null,null,null,null,null,null,null,null,null,null,null,null,"百貨店・商店"]
[null,null,null,null,null,null,null,null,null,null,null,null,null,null,"鉄道",null,null,null,null,null,null,null,null,null,null,null,null,null,null,null,null,null,null,null,null,null,null,null,null,null,null,null,null,null,null,null,null,null,null,null,null,null,null,null,null,null,null,null,null,null,null,null,null,null,null,null,null,null,"ライトグレー"]
[null,null,null,null,null,null,null,null,null,null,null,null,null,null,"通信",null,null,null,null,null,null,null,null,null,null,null,null,null,null,null,null,null,null,null,null,null,null,null,null,null,null,null,null,null,null,null,null,null,null,null,null,null,null,null,null,null,null,null,null,null,null,null,null,null,null,null,null,null,"アイボリー"]
[null,null,null,null,null,null,null,null,null,null,null,null,null,null,"運輸",null,null,null,null,null,null,null,null,null,null,null,null,null,null,null,null,null,null,null,null,null,null,null,null,null,null,null,null,null,null,null,null,null,null,null,null,null,null,null,null,null,null,null,null,null,null,null,null,null,null,null,null,null,"ライトブラウン"]
[null,null,null,null,null,null,null,null,null,null,null,null,null,null,"倉庫"]
[null,null,null,null,null,null,null,null,null,null,null,null,null,null,"不動産業"]
[null,null,null,null,null,null,null,null,null,null,null,null,null,null,"食料品"]
[null,null,null,null,null,null,null,null,null,null,null,null,null,null,"繊維"]
[null,null,null,null,null,null,null,null,null,null,null,null,null,null,"紙パルプ"]
[null,null,null,null,null,null,null,null,null,null,null,null,null,null,"化学"]
[null,null,null,null,null,null,null,null,null,null,null,null,null,null,"石油石炭"]
[null,null,null,null,null,null,null,null,null,null,null,null,null,null,"農業"]
[null,null,null,null,null,null,null,null,null,null,null,null,null,null,"林業"]
[null,null,null,null,null,null,null,null,null,null,null,null,null,null,"建設業"]
[null,null,null,null,null,null,null,null,null,null,null,null,null,null,"電気"]
[null,null,null,null,null,null,null,null,null,null,null,null,null,null,"ガス"]
[null,null,null,null,null,null,null,null,null,null,null,null,null,null,"水道"]
[null,null,null,null,null,null,null,null,null,null,null,null,null,null,"公務"]
[null,null,null,null,null,null,null,null,null,null,null,null,null,null,"その他"]
[null,null,null,null,null,null,null,null,null,null,null,null,null,null,"　　"]
[null,null,null,null,null,null,null,null,null,null,null,null,null,null,"（高圧電力のお客さま）"]
[null,null,null,null,null,null,null,null,null,null,null,null,null,null,"百貨店・商店"]
[null,null,null,null,null,null,null,null,null,null,null,null,null,null,"鉄道"]
[null,null,null,null,null,null,null,null,null,null,null,null,null,null,"運輸"]
[null,null,null,null,null,null,null,null,null,null,null,null,null,null,"倉庫"]
[null,null,null,null,null,null,null,null,null,null,null,null,null,null,"食料品"]
[null,null,null,null,null,null,null,null,null,null,null,null,null,null,"繊維"]
[null,null,null,null,null,null,null,null,null,null,null,null,null,null,"紙パルプ"]
[null,null,null,null,null,null,null,null,null,null,null,null,null,null,"化学"]
[null,null,null,null,null,null,null,null,null,null,null,null,null,null,"石油石炭"]
[null,null,null,null,null,null,null,null,null,null,null,null,null,null,"ゴム"]
[null,null,null,null,null,null,null,null,null,null,null,null,null,null,"窯業土石"]
[null,null,null,null,null,null,null,null,null,null,null,null,null,null,"鉄鋼"]
[null,null,null,null,null,null,null,null,null,null,null,null,null,null,"非鉄金属"]
[null,null,null,null,null,null,null,null,null,null,null,null,null,null,"機械"]
[null,null,null,null,null,null,null,null,null,null,null,null,null,null,"電気機械"]
[null,null,null,null,null,null,null,null,null,null,null,null,null,null,"輸送用機械"]
[null,null,null,null,null,null,null,null,null,null,null,null,null,null,"精密機械"]
[null,null,null,null,null,null,null,null,null,null,null,null,null,null,"木材"]
[null,null,null,null,null,null,null,null,null,null,null,null,null,null,"印刷・出版"]
[null,null,null,null,null,null,null,null,null,null,null,null,null,null,"金属製品"]
[null,null,null,null,null,null,null,null,null,null,null,null,null,null,"その他製造業"]
[null,null,null,null,null,null,null,null,null,null,null,null,null,null,"鉱業"]
[null,null,null,null,null,null,null,null,null,null,null,null,null,null,"農業"]
[null,null,null,null,null,null,null,null,null,null,null,null,null,null,"林業"]
[null,null,null,null,null,null,null,null,null,null,null,null,null,null,"漁業"]
[null,null,null,null,null,null,null,null,null,null,null,null,null,null,"建設業"]
[null,null,null,null,null,null,null,null,null,null,null,null,null,null,"電気"]
[null,null,null,null,null,null,null,null,null,null,null,null,null,null,"ガス"]
[null,null,null,null,null,null,null,null,null,null,null,null,null,null,"水道"]
[null,null,null,null,null,null,null,null,null,null,null,null,null,null,"公務"]
[null,null,null,null,null,null,null,null,null,null,null,null,null,null,"その他"]

{"sheet":"記入例","index":1,"n_rows":198,"n_cols":158,"rows_kept":198,"cut":false,"hidden":false,"merged":[[19,42,24,83],[30,42,32,83],[47,12,48,83],[41,38,42,39],[41,40,42,41],[39,143,40,149],[39,150,40,156],[39,157,40,164],[37,104,38,122],[37,124,38,142],[37,143,38,149],[37,150,38,156],[37,157,38,164],[38,57,38,61],[38,62,38,83],[35,150,36,156],[35,157,36,164],[46,14,46,29],[46,33,46,58],[32,104,33,117],[32,97,33,103],[32,93,33,96],[32,88,33,92],[32,118,33,125],[32,130,33,142],[32,128,33,129],[32,126,33,127],[64,85,64,123],[64,124,64,164],[65,85,65,123],[65,124,65,164],[58,85,58,123],[58,124,58,164],[59,85,59,123],[59,124,59,164],[60,85,60,123],[60,124,60,164],[51,85,51,101],[52,85,55,164],[56,85,56,123],[56,124,56,164],[57,85,57,123],[57,124,57,164],[67,0,68,10],[67,11,68,34],[67,43,68,59],[67,60,68,70],[67,85,68,100],[67,101,68,123],[61,85,61,123],[61,124,61,164],[62,85,62,123],[62,124,62,164],[63,85,63,123],[63,124,63,164],[67,35,68,42],[67,71,68,84],[67,124,68,140],[67,141,68,164],[49,0,52,11],[50,14,50,29],[50,33,50,58],[51,12,52,83],[41,124,42,142],[41,143,42,149],[41,150,42,156],[41,157,42,164],[43,0,44,11],[43,42,44,54],[43,55,44,83],[44,85,49,86],[44,87,49,164],[45,0,48,11],[41,42,42,54],[41,55,42,69],[41,70,42,74],[41,75,42,83],[41,85,42,103],[41,104,42,122],[41,28,42,31],[41,32,42,33],[41,34,42,35],[41,36,42,37],[41,0,42,11],[41,12,42,15],[41,16,42,17],[41,20,42,21],[41,22,42,23],[41,24,42,27],[39,85,40,103],[39,104,40,122],[39,124,40,142],[39,0,40,11],[39,12,40,23],[39,24,40,26],[39,27,40,38],[39,39,40,41],[39,42,40,83],[41,18,42,19],[35,165,40,165],[37,0,38,11],[37,12,38,26],[37,27,38,41],[37,42,38,56],[37,57,37,61],[37,62,37,83],[37,85,38,103],[35,0,36,11],[35,12,36,26],[35,27,36,41],[35,85,36,122],[35,124,36,142],[35,143,36,149],[33,33,34,36],[33,37,34,40],[33,41,34,41],[33,57,33,61],[33,62,33,83],[34,42,36,83],[31,0,32,3],[31,4,32,5],[31,6,32,22],[31,23,32,24],[31,25,32,41],[33,0,34,11],[33,12,34,20],[33,21,34,24],[33,25,34,28],[33,29,34,32],[28,128,29,129],[28,130,29,142],[29,0,30,3],[29,4,30,5],[29,6,30,22],[29,23,30,24],[29,25,30,41],[29,62,29,83],[30,88,31,92],[30,93,31,96],[28,88,29,92],[28,93,29,96],[28,97,29,103],[28,104,29,117],[28,118,29,125],[28,126,29,127],[23,157,24,164],[25,0,26,11],[25,42,25,57],[26,42,28,83],[26,85,33,87],[26,88,27,92],[26,93,27,96],[26,97,27,103],[26,104,27,117],[26,118,27,125],[26,126,26,129],[26,130,27,142],[27,0,28,3],[27,4,28,20],[27,21,28,24],[27,25,28,41],[27,126,27,127],[27,128,27,129],[30,97,31,103],[30,104,31,117],[30,118,31,125],[30,126,31,127],[30,128,31,129],[30,130,31,142],[21,151,22,153],[21,154,22,156],[21,157,22,164],[23,9,23,11],[23,12,23,38],[23,39,23,41],[23,85,24,112],[23,113,24,115],[23,116,24,118],[23,119,24,124],[21,107,22,112],[21,113,22,115],[21,116,22,118],[21,119,22,124],[21,125,22,130],[21,131,22,150],[21,85,22,86],[21,87,22,92],[21,93,22,95],[21,96,22,100],[21,101,22,103],[21,104,22,106],[23,125,24,130],[23,131,24,156],[19,151,20,153],[19,154,20,156],[19,157,20,164],[19,96,20,100],[19,101,20,103],[19,104,20,106],[19,107,20,112],[19,113,20,115],[19,116,20,118],[19,85,20,86],[19,87,20,92],[19,93,20,95],[17,140,18,142],[17,143,18,145],[17,146,18,150],[19,119,20,124],[19,125,20,130],[19,131,20,150],[17,151,18,153],[17,154,18,156],[17,157,18,164],[17,107,18,112],[17,113,18,115],[17,116,18,118],[17,119,18,124],[17,125,18,130],[17,131,18,139],[13,107,14,112],[13,113,14,115],[13,116,14,118],[13,119,14,124],[13,125,14,130],[15,146,16,150],[15,151,16,153],[15,154,16,156],[15,157,16,164],[15,116,16,118],[15,119,16,124],[15,125,16,130],[15,131,16,139],[15,140,16,142],[15,143,16,145],[15,34,17,83],[15,85,16,86],[15,87,16,92],[15,93,16,95],[15,96,16,100],[15,101,16,103],[15,104,16,106],[15,107,16,112],[15,113,16,115],[17,85,18,86],[17,87,18,92],[17,93,18,95],[17,96,18,100],[17,101,18,103],[17,104,18,106],[18,52,18,55],[18,58,18,62],[18,69,18,83],[11,146,12,150],[11,151,12,153],[11,154,12,156],[11,157,12,164],[12,34,13,83],[13,85,14,86],[13,87,14,92],[13,93,14,95],[13,96,14,100],[13,101,14,103],[11,116,12,118],[11,119,12,124],[11,125,12,130],[11,131,12,139],[11,140,12,142],[11,143,12,145],[13,157,14,164],[13,131,14,139],[13,140,14,142],[13,143,14,145],[13,146,14,150],[13,151,14,153],[13,154,14,156],[13,104,14,106],[9,143,10,145],[9,146,10,150],[9,151,10,153],[9,101,10,103],[9,104,10,106],[9,107,10,112],[9,113,10,115],[9,116,10,118],[9,119,10,124],[11,85,12,86],[11,87,12,92],[11,93,12,95],[11,96,12,100],[11,101,12,103],[11,104,12,106],[11,107,12,112],[11,113,12,115],[9,125,10,130],[7,157,8,164],[8,34,10,83],[9,85,10,86],[9,87,10,92],[9,93,10,95],[9,96,10,100],[6,72,7,75],[6,76,7,79],[6,80,7,83],[5,157,6,164],[6,29,6,36],[6,49,7,54],[6,55,7,63],[6,64,7,67],[6,68,7,71],[5,119,6,124],[5,125,6,130],[5,131,6,139],[3,76,5,77],[3,78,5,79],[9,154,10,156],[9,157,10,164],[9,131,10,139],[9,140,10,142],[7,119,8,124],[7,125,8,130],[7,131,8,139],[7,140,8,142],[5,140,6,142],[5,143,6,145],[5,146,6,150],[5,151,5,156],[5,104,6,106],[5,107,6,112],[5,113,5,118],[7,143,8,145],[7,146,8,150],[7,151,8,153],[7,154,8,156],[7,85,8,86],[7,87,8,92],[7,93,8,95],[7,96,8,100],[7,101,8,103],[7,104,8,106],[7,107,8,112],[7,113,8,115],[7,116,8,118],[3,85,4,130],[3,131,4,164],[5,85,6,92],[5,93,6,95],[5,96,6,100],[5,101,6,103],[3,64,5,65],[3,66,5,67],[3,68,5,69],[3,70,5,71],[3,72,5,73],[3,74,5,75],[6,154,6,156],[6,113,6,115],[6,116,6,118],[6,151,6,153],[0,142,1,164],[1,36,2,39],[1,40,2,41],[1,42,2,47],[1,48,2,55],[1,56,2,59],[1,60,2,63],[1,64,2,65],[1,66,2,67],[1,68,2,79],[0,0,1,35],[0,87,1,93],[0,94,1,111],[0,112,1,118],[0,119,1,136],[0,137,1,141],[1,80,2,83],[2,0,3,35],[3,36,5,37],[3,38,5,39],[3,52,5,53],[3,54,5,55],[3,56,5,57],[3,58,5,59],[3,60,5,61],[3,62,5,63],[3,40,5,41],[3,42,5,43],[3,44,5,45],[3,46,5,47],[3,48,5,49],[3,50,5,51],[3,80,5,81],[3,82,5,83]]}
["電 気 使 用 申 込 書（高 圧）",null,null,null,null,null,null,null,null,null,null,null,null,null,null,null,null,null,null,null,null,null,null,null,null,null,null,null,null,null,null,null,null,null,null,null,null,null,null,null,null,null,null,null,null,null,null,null,null,null,null,null,null,null,null,null,null,null,null,null,null,null,null,null,null,null,null,null,null,null,null,null,null,null,null,null,null,null,null,null,null,null,null,null,null,null,null,"Web工事番号",null,null,null,null,null,null,null,null,null,null,null,null,null,null,null,null,null,null,null,null,null,null,null,null,"受付No．",null,null,null,null,null,null,null,null,null,null,null,null,null,null,null,null,null,null,null,null,null,null,null,null,"受付日",null,null,null,null,"年　　　月　　　日　"]
[null,null,null,null,null,null,null,null,null,null,null,null,null,null,null,null,null,null,null,null,null,null,null,null,null,null,null,null,null,null,null,null,null,null,null,null,"エリア",null,null,null,"電\n圧",null,"営業所",null,null,null,null,null,"住所コード",null,null,null,null,null,null,null,"街区",null,null,null,"住居",null,null,null,"枝",null,"識\n別",null,"固定番号",null,null,null,null,null,null,null,null,null,null,null,"日程"]
["中部電力ミライズ株式会社　宛"]
[null,null,null,null,null,null,null,null,null,null,null,null,null,null,null,null,null,null,null,null,null,null,null,null,null,null,null,null,null,null,null,null,null,null,null,null,0,null,4,null,1,null,null,null,null,null,null,null,null,null,null,null,null,null,null,null,null,null,null,null,null,null,null,null,null,null,null,null,0,null,0,null,0,null,0,null,0,null,0,null,null,null,null,null,null,"契約受電設備（受電用変圧器）内訳",null,null,null,null,null,null,null,null,null,null,null,null,null,null,null,null,null,null,null,null,null,null,null,null,null,null,null,null,null,null,null,null,null,null,null,null,null,null,null,null,null,null,null,null,null,"契約負荷設備（高圧）"]
[]
[null,null,null,null,null,null,null,null,null,null,null,null,null,null,null,null,null,null,null,null,null,null,null,null,null,null,null,null,null,null,null,null,null,null,null,null,null,null,null,null,null,null,null,null,null,null,null,null,null,null,null,null,null,null,null,null,null,null,null,null,null,null,null,null,null,null,null,null,null,null,null,null,null,null,null,null,null,null,null,null,null,null,null,null,null,"電圧\nkV",null,null,null,null,null,null,null,"相",null,null,"結線",null,null,null,null,"ｾｯﾄ",null,null,"差替",null,null,"容量\nkVA",null,null,null,null,null,"台数",null,null,null,null,null,"既設合計\n容量kVA",null,null,null,null,null,"今後合計\n容量kVA",null,null,null,null,null,"機器名",null,null,null,null,null,null,null,null,"ｾｯﾄ",null,null,"差替",null,null,"容量",null,null,null,null,"台数",null,null,null,null,null,"今後の合計\n容量kVA"]
[null,null,null,null,null,null,null,null,null,null,null,null,null,null,null,null,null,null,null,null,null,null,null,null,null,null,null,null,null,"（申込者）",null,null,null,null,null,null,null,null,null,null,null,null,null,null,null,null,null,null,null,"申込日",null,null,null,null,null,2021,null,null,null,null,null,null,null,null,"年",null,null,null,4,null,null,null,"月",null,null,null,1,null,null,null,"日",null,null,null,null,null,null,null,null,null,null,null,null,null,null,null,null,null,null,null,null,null,null,null,null,null,null,null,null,null,null,null,null,"旧",null,null,"新",null,null,null,null,null,null,null,null,null,null,null,null,null,null,null,null,null,null,null,null,null,null,null,null,null,null,null,null,null,null,null,null,null,null,"旧",null,null,"新"]
[null,null,null,null,null,null,null,null,null,null,null,null,null,null,null,null,null,null,null,null,null,null,null,null,null,null,null,null,null,null,null,null,null,null,null,null,null,null,null,null,null,null,null,null,null,null,null,null,null,null,null,null,null,null,null,null,null,null,null,null,null,null,null,null,null,null,null,null,null,null,null,null,null,null,null,null,null,null,null,null,null,null,null,null,null,"6/",null,"0.1,0.2",null,null,null,null,null,"単",null,null,"単結線",null,null,null,null,null,null,null,null,null,null,100,null,null,null,null,null,0,null,null,1,null,null,{"$f":"IF(DD8*DJ8=0,\"\",DD8*DJ8)","v":""},null,null,null,null,null,{"$f":"IF(DD8*DM8=0,\"\",DD8*DM8)","v":100}]
[null,null,null,null,null,null,null,null,null,null,null,null,null,null,null,null,null,null,null,null,null,null,null,null,null,null,null,null,null,"ご住所",null,null,null,null,"愛知県名古屋市東区東新町１"]
[null,null,null,null,null,null,null,null,null,null,null,null,null,null,null,null,null,null,null,null,null,null,null,null,null,null,null,null,null,null,null,null,null,null,null,null,null,null,null,null,null,null,null,null,null,null,null,null,null,null,null,null,null,null,null,null,null,null,null,null,null,null,null,null,null,null,null,null,null,null,null,null,null,null,null,null,null,null,null,null,null,null,null,null,null,"6/",null,0.2,null,null,null,null,null,3,null,null,"Ｙ－Δ",null,null,null,null,null,null,null,null,null,null,300,null,null,null,null,null,0,null,null,1,null,null,{"$f":"IF(DD10*DJ10=0,\"\",DD10*DJ10)","v":""},null,null,null,null,null,{"$f":"IF(DD10*DM10=0,\"\",DD10*DM10)","v":300}]
[]
[null,null,null,null,null,null,null,null,null,null,null,null,null,null,null,null,null,null,null,null,null,null,null,null,null,null,null,null,null,"お客さま名",null,null,null,null,null,null,null,null,null,null,null,null,null,null,null,null,null,null,null,null,null,null,null,null,null,null,null,null,null,null,null,null,null,null,null,null,null,null,null,null,null,null,null,null,null,null,null,null,null,null,null,null,null,null,null,"6/",null,null,null,null,null,null,null,null,null,null,null,null,null,null,null,null,null,null,null,null,null,null,null,null,null,null,null,null,null,null,null,null,null,{"$f":"IF(DD12*DJ12=0,\"\",DD12*DJ12)","v":""},null,null,null,null,null,{"$f":"IF(DD12*DM12=0,\"\",DD12*DM12)","v":""}]
[null,null,null,null,null,null,null,null,null,null,null,null,null,null,null,null,null,null,null,null,null,null,null,null,null,null,null,null,null,null,null,null,null,null,"中部株式会社"]
[null,null,null,null,null,null,null,null,null,null,null,null,null,null,null,null,null,null,null,null,null,null,null,null,null,null,null,null,null,null,null,null,null,null,null,null,null,null,null,null,null,null,null,null,null,null,null,null,null,null,null,null,null,null,null,null,null,null,null,null,null,null,null,null,null,null,null,null,null,null,null,null,null,null,null,null,null,null,null,null,null,null,null,null,null,"6/",null,null,null,null,null,null,null,null,null,null,null,null,null,null,null,null,null,null,null,null,null,null,null,null,null,null,null,null,null,null,null,null,null,{"$f":"IF(DD14*DJ14=0,\"\",DD14*DJ14)","v":""},null,null,null,null,null,{"$f":"IF(DD14*DM14=0,\"\",DD14*DM14)","v":""}]
[null,null,null,null,null,null,null,null,null,null,null,null,null,null,null,null,null,null,null,null,null,null,null,null,null,null,null,null,null,"（代表者名）"]
[null,null,null,null,null,null,null,null,null,null,null,null,null,null,null,null,null,null,null,null,null,null,null,null,null,null,null,null,null,null,null,null,null,null,"代表取締役社長　○○　○○",null,null,null,null,null,null,null,null,null,null,null,null,null,null,null,null,null,null,null,null,null,null,null,null,null,null,null,null,null,null,null,null,null,null,null,null,null,null,null,null,null,null,null,null,null,null,null,null,null,null,"6/",null,null,null,null,null,null,null,null,null,null,null,null,null,null,null,null,null,null,null,null,null,null,null,null,null,null,null,null,null,null,null,null,null,{"$f":"IF(DD16*DJ16=0,\"\",DD16*DJ16)","v":""},null,null,null,null,null,{"$f":"IF(DD16*DM16=0,\"\",DD16*DM16)","v":""}]
[]
["（申込内容）",null,null,null,null,null,null,null,null,null,null,null,null,null,null,null,null,null,null,null,null,null,null,null,null,null,null,null,null,null,null,null,null,null,null,null,null,null,null,null,null,null,null,null,null,null,null,null,null,null,null,null,null,null,null,null,null,null,null,null,null,null,null,null,null,null,null,null,null,null,null,null,null,null,null,null,null,null,null,null,null,null,null,null,null,"6/",null,null,null,null,null,null,null,null,null,null,null,null,null,null,null,null,null,null,null,null,null,null,null,null,null,null,null,null,null,null,null,null,null,{"$f":"IF(DD18*DJ18=0,\"\",DD18*DJ18)","v":""},null,null,null,null,null,{"$f":"IF(DD18*DM18=0,\"\",DD18*DM18)","v":""}]
[null,null,null,null,null,null,null,null,null,null,null,null,null,null,null,null,null,null,null,null,null,null,null,null,null,null,null,null,null,null,null,null,null,null,null,null,null,null,null,null,null,null,null,"需要場所",null,null,null,null,null,null,"〒",null,514,null,null,null,"-",null,8558,null,null,null,null,null,"ＴＥＬ",null,null,null,null,"059-999-9999"]
[null,null,null,null,null,null,null,null,null,null,null,null,null,null,null,null,null,null,null,null,null,null,null,null,null,null,null,null,null,null,null,null,null,null,null,null,null,null,null,null,null,null,"三重県津市丸之内2番21号",null,null,null,null,null,null,null,null,null,null,null,null,null,null,null,null,null,null,null,null,null,null,null,null,null,null,null,null,null,null,null,null,null,null,null,null,null,null,null,null,null,null,"6/",null,null,null,null,null,null,null,null,null,null,null,null,null,null,null,null,null,null,null,null,null,null,null,null,null,null,null,null,null,null,null,null,null,{"$f":"IF(DD20*DJ20=0,\"\",DD20*DJ20)","v":""},null,null,null,null,null,{"$f":"IF(DD20*DM20=0,\"\",DD20*DM20)","v":""},null,null,null,null,null,"小計②",null,null,null,null,null,null,null,null,null,null,null,null,null,null,null,null,null,null,null,{"$f":"IF(SUM(EV8:EV18)=0,\"\",SUM(EV8:EV18))","v":""},null,null,{"$f":"IF(SUM(EY8:EY18)=0,\"\",SUM(EY8:EY18))","v":""},null,null,{"$f":"SUM(FB8:FI19)","v":0}]
[]
[null,null,null,null,null,null,null,null,null,null,null,null,null,null,null,null,null,null,null,null,null,null,null,null,null,null,null,null,null,null,null,null,null,null,null,null,null,null,null,null,null,null,null,null,null,null,null,null,null,null,null,null,null,null,null,null,null,null,null,null,null,null,null,null,null,null,null,null,null,null,null,null,null,null,null,null,null,null,null,null,null,null,null,null,null,"6/",null,null,null,null,null,null,null,null,null,null,null,null,null,null,null,null,null,null,null,null,null,null,null,null,null,null,null,null,null,null,null,null,null,{"$f":"IF(DD22*DJ22=0,\"\",DD22*DJ22)","v":""},null,null,null,null,null,{"$f":"IF(DD22*DM22=0,\"\",DD22*DM22)","v":""},null,null,null,null,null,"③（①＋②）",null,null,null,null,null,null,null,null,null,null,null,null,null,null,null,null,null,null,null,null,null,null,null,null,null,{"$f":"DV24+FB20","v":400}]
[]
[null,null,null,null,null,null,null,null,null,"（",null,null,null,null,null,null,null,null,null,null,null,null,null,null,null,null,null,null,null,null,null,null,null,null,null,null,null,null,null,"）",null,null,null,null,null,null,null,null,null,null,null,null,null,null,null,null,null,null,null,null,null,null,null,null,null,null,null,null,null,null,null,null,null,null,null,null,null,null,null,null,null,null,null,null,null,"小計①",null,null,null,null,null,null,null,null,null,null,null,null,null,null,null,null,null,null,null,null,null,null,null,null,null,null,null,{"$f":"IF(SUM(DJ8:DJ22)=0,\"\",SUM(DJ8:DJ22))","v":""},null,null,{"$f":"IF(SUM(DM8:DM22)=0,\"\",SUM(DM8:DM22))","v":2},null,null,{"$f":"IF(SUM(DP8:DP22)=0,\"\",SUM(DP8:DP22))","v":""},null,null,null,null,null,{"$f":"IF(SUM(DV8:DV22)=0,\"\",SUM(DV8:DV22))","v":400},null,null,null,null,null,"計算電力値(③×容量圧縮率) (ｋＷ)",null,null,null,null,null,null,null,null,null,null,null,null,null,null,null,null,null,null,null,null,null,null,null,null,null,{"$f":"IF(FB22<0,FB22*0.8,IF(FB22<50,40+(FB22-50)*0.8,IF(FB22<=100,40+(FB22-50)*0.7,IF(FB22<=300,75+(FB22-100)*0.6,IF(FB22<=600,195+(FB22-300)*0.5,IF(FB22>600,345+(FB22-600)*0.4))))))","v":245}]
[]
["契約継続割引",null,null,null,null,null,null,null,null,null,null,null,null,null,null,null,null,null,null,null,null,null,null,null,null,null,null,null,null,null,null,null,null,null,null,null,null,null,null,null,null,null,"　工場名・事業所名等"]
[null,null,null,null,null,null,null,null,null,null,null,null,null,null,null,null,null,null,null,null,null,null,null,null,null,null,null,null,null,null,null,null,null,null,null,null,null,null,null,null,null,null,"中部株式会社　三重支社",null,null,null,null,null,null,null,null,null,null,null,null,null,null,null,null,null,null,null,null,null,null,null,null,null,null,null,null,null,null,null,null,null,null,null,null,null,null,null,null,null,null,"発電設備",null,null,"電圧\nkV",null,null,null,null,"連系\n有無",null,null,null,"運転形態",null,null,null,null,null,null,"種類",null,null,null,null,null,null,null,null,null,null,null,null,null,"出力\nkW",null,null,null,null,null,null,null,"台数",null,null,null,"合計\nkW"]
["業種",null,null,null,"事務所・ビル",null,null,null,null,null,null,null,null,null,null,null,null,null,null,null,null,"用途",null,null,null,"事務所",null,null,null,null,null,null,null,null,null,null,null,null,null,null,null,null,null,null,null,null,null,null,null,null,null,null,null,null,null,null,null,null,null,null,null,null,null,null,null,null,null,null,null,null,null,null,null,null,null,null,null,null,null,null,null,null,null,null,null,null,null,null,null,null,null,null,null,null,null,null,null,null,null,null,null,null,null,null,null,null,null,null,null,null,null,null,null,null,null,null,null,null,null,null,null,null,null,null,null,null,"旧",null,"新"]
[null,null,null,null,null,null,null,null,null,null,null,null,null,null,null,null,null,null,null,null,null,null,null,null,null,null,null,null,null,null,null,null,null,null,null,null,null,null,null,null,null,null,null,null,null,null,null,null,null,null,null,null,null,null,null,null,null,null,null,null,null,null,null,null,null,null,null,null,null,null,null,null,null,null,null,null,null,null,null,null,null,null,null,null,null,null,null,null,0.2,null,null,null,null,"無",null,null,null,"非常用",null,null,null,null,null,null,"ディーゼル",null,null,null,null,null,null,null,null,null,null,null,null,null,30,null,null,null,null,null,null,null,0,null,1,null,30]
["契約\n種別",null,null,null,"旧",null,null,null,null,null,null,null,null,null,null,null,null,null,null,null,null,null,null,"新",null,"高圧業務用電力",null,null,null,null,null,null,null,null,null,null,null,null,null,null,null,null,"　お客さま連絡場所",null,null,null,null,null,null,null,null,null,null,null,null,null,null,"ＴＥＬ",null,null,null,null,"052-999-9999"]
[null,null,null,null,null,null,null,null,null,null,null,null,null,null,null,null,null,null,null,null,null,null,null,null,null,null,null,null,null,null,null,null,null,null,null,null,null,null,null,null,null,null,"愛知県名古屋市東区東新町１番地"]
["料金\nプラン",null,null,null,"旧",null,null,null,null,null,null,null,null,null,null,null,null,null,null,null,null,null,null,"新",null,"ＦＲプランＡ"]
[]
["使用開始希望日",null,null,null,null,null,null,null,null,null,null,null,2022,null,null,null,null,null,null,null,null,"年",null,null,null,4,null,null,null,"月",null,null,null,1,null,null,null,"日",null,null,null,null,"　お客さま連絡者名",null,null,null,null,null,null,null,null,null,null,null,null,null,null,"Ｅメール",null,null,null,null,"xxxxxx@xxxxx.co.jp"]
[null,null,null,null,null,null,null,null,null,null,null,null,null,null,null,null,null,null,null,null,null,null,null,null,null,null,null,null,null,null,null,null,null,null,null,null,null,null,null,null,null,null,"田中　太郎"]
[null,null,null,null,null,null,null,null,null,null,null,null,"既契約",null,null,null,null,null,null,null,null,null,null,null,null,null,null,"申込み",null,null,null,null,null,null,null,null,null,null,null,null,null,null,null,null,null,null,null,null,null,null,null,null,null,null,null,null,null,null,null,null,null,null,null,null,null,null,null,null,null,null,null,null,null,null,null,null,null,null,null,null,null,null,null,null,null,"主要動力負荷設備",null,null,null,null,null,null,null,null,null,null,null,null,null,null,null,null,null,null,null,null,null,null,null,null,null,null,null,null,null,null,null,null,null,null,null,null,null,null,"増加負荷設備（電灯含む）",null,null,null,null,null,null,null,null,null,null,null,null,null,null,null,null,null,null,"容量",null,null,null,null,null,null,"台数",null,null,null,null,null,null,"合計容量"]
[]
["低圧契約からの\n契約種別種変",null,null,null,null,null,null,null,null,null,null,null,null,null,null,null,null,null,null,null,null,null,null,null,null,null,null,null,null,null,null,null,null,null,null,null,null,null,null,null,null,null,"　電気主任技術者",null,null,null,null,null,null,null,null,null,null,null,null,null,null,"ＴＥＬ"]
[null,null,null,null,null,null,null,null,null,null,null,null,null,null,null,null,null,null,null,null,null,null,null,null,null,null,null,null,null,null,null,null,null,null,null,null,null,null,null,null,null,null,null,null,null,null,null,null,null,null,null,null,null,null,null,null,null,"携　帯",null,null,null,null,"090-XXXX-XXXX"]
["協議契約電力(*1)",null,null,null,null,null,null,null,null,null,null,null,null,null,null,null,null,null,null,null,null,null,null,null,"kW",null,null,null,null,null,null,null,null,null,null,null,null,null,null,"kW",null,null,"○○電気保安協会、○○電気保安管理事務所　など"]
[]
[" 契約使用期間(*2)",null,null,null,null,null,null,null,null,null,null,null,null,null,null,null,"年",null,null,null,"月",null,null,null,"日～",null,null,null,null,null,null,null,"年",null,null,null,"月",null,null,null,"日",null,"供給電気方式",null,null,null,null,null,null,null,null,null,null,null,null,"　　交流３相３線式　　　　　　",null,null,null,null,null,null,null,null,null,null,null,null,null,null,60,null,null,null,null,"ヘルツ"]
[]
["電気料金\nお支払い方法",null,null,null,null,null,null,null,null,null,null,null,null,null,null,null,null,null,null,null,null,null,null,null,null,null,null,null,null,null,null,null,null,null,null,null,null,null,null,null,null,null,"供給電圧",null,null,null,null,null,null,null,null,null,null,null,null,"　　受電 6 kV  計量 6 kV"]
[null,null,null,null,null,null,null,null,null,null,null,null,null,null,null,null,null,null,null,null,null,null,null,null,null,null,null,null,null,null,null,null,null,null,null,null,null,null,null,null,null,null,null,null,null,null,null,null,null,null,null,null,null,null,null,null,null,null,null,null,null,null,null,null,null,null,null,null,null,null,null,null,null,null,null,null,null,null,null,null,null,null,null,null,null,"ご要望等"]
["ご請求書送付先"]
[null,null,null,null,null,null,null,null,null,null,null,null,"〒",null,"461-8680",null,null,null,null,null,null,null,null,null,null,null,null,null,null,null,"TEL",null,null,"052-999-9999"]
[null,null,null,null,null,null,null,null,null,null,null,null,"愛知県名古屋市東区東新町１番地"]
[]
["電気ご使用量の\nお知らせ送付先"]
[null,null,null,null,null,null,null,null,null,null,null,null,"〒",null,null,null,null,null,null,null,null,null,null,null,null,null,null,null,null,null,"TEL"]
[null,null,null,null,null,null,null,null,null,null,null,null,null,null,null,null,null,null,null,null,null,null,null,null,null,null,null,null,null,null,null,null,null,null,null,null,null,null,null,null,null,null,null,null,null,null,null,null,null,null,null,null,null,null,null,null,null,null,null,null,null,null,null,null,null,null,null,null,null,null,null,null,null,null,null,null,null,null,null,null,null,null,null,null,null,"【個人情報の利用目的】"]
[null,null,null,null,null,null,null,null,null,null,null,null,null,null,null,null,null,null,null,null,null,null,null,null,null,null,null,null,null,null,null,null,null,null,null,null,null,null,null,null,null,null,null,null,null,null,null,null,null,null,null,null,null,null,null,null,null,null,null,null,null,null,null,null,null,null,null,null,null,null,null,null,null,null,null,null,null,null,null,null,null,null,null,null,null,"　当社は、当社が取得・保有する個人情報について、次の事業において、契約の媒介・締結・履行、資産・設備等の形成・保全、関連するアフターサービス、商品・サービスの改善・開発、商品・サービスに関するダイレクトメール・電話・訪問等によるご案内、アンケートの実施、その他これらに付随する業務を行うために必要な範囲内において利用させていただきます。\n　なお、利用目的が法令等に基づき限定されている個人情報は、法令等で認められた場合を除き、法令等に基づき限定されている目的以外では利用いたしません。"]
["*1  契約電力を協議により定めるお申込みの場合はご記入ください。　*2  臨時電力の場合は必要事項をご記入ください。"]
[null,"◇既契約が低圧のお客さまで、電灯・動力の契約電力の合計値が50kW以上となりますか。"]
[]
[null,"◇上記でいいえをお答えのお客さま、既契約が高圧・特別高圧のお客さま、新たにご契約されるお客さま",null,null,null,null,null,null,null,null,null,null,null,null,null,null,null,null,null,null,null,null,null,null,null,null,null,null,null,null,null,null,null,null,null,null,null,null,null,null,null,null,null,null,null,null,null,null,null,null,null,null,null,null,null,null,null,null,null,null,null,null,null,null,null,null,null,null,null,null,null,null,null,null,null,null,null,null,null,null,null,null,null,null,null,"１　電気事業　                                                　",null,null,null,null,null,null,null,null,null,null,null,null,null,null,null,null,null,null,null,null,null,null,null,null,null,null,null,null,null,null,null,null,null,null,null,null,null,null,"９　エネルギー利用、環境および前各号に関する調査、エンジニアリング"]
[null,null,"最大需要電力が50kW以上になると予想しますか。",null,null,null,null,null,null,null,null,null,null,null,null,null,null,null,null,null,null,null,null,null,null,null,null,null,null,null,null,null,null,null,null,null,null,null,null,null,null,null,null,null,null,null,null,null,null,null,null,null,null,null,null,null,null,null,null,null,null,null,null,null,null,null,null,null,null,null,null,null,null,null,null,null,null,null,null,null,null,null,null,null,null,"２　ガス事業",null,null,null,null,null,null,null,null,null,null,null,null,null,null,null,null,null,null,null,null,null,null,null,null,null,null,null,null,null,null,null,null,null,null,null,null,null,null,"　　およびコンサルティング"]
[null,null,null,null,null,null,null,null,null,null,null,null,null,null,null,null,null,null,null,null,null,null,null,null,null,null,null,null,null,null,null,null,null,null,null,null,null,null,null,null,null,null,null,null,null,null,null,null,null,null,null,null,null,null,null,null,null,null,null,null,null,null,null,null,null,null,null,null,null,null,null,null,null,null,null,null,null,null,null,null,null,null,null,null,null,"３　エネルギー関連の機械器具および設備の製造、販売、賃貸、リー",null,null,null,null,null,null,null,null,null,null,null,null,null,null,null,null,null,null,null,null,null,null,null,null,null,null,null,null,null,null,null,null,null,null,null,null,null,null,"10　法人および個人向け各種支援サービスの提供および斡旋"]
[null,"◇最大需要電力が50kW未満になると予想されるお客さまについては、詳細な契約負荷設備のご提出をお願",null,null,null,null,null,null,null,null,null,null,null,null,null,null,null,null,null,null,null,null,null,null,null,null,null,null,null,null,null,null,null,null,null,null,null,null,null,null,null,null,null,null,null,null,null,null,null,null,null,null,null,null,null,null,null,null,null,null,null,null,null,null,null,null,null,null,null,null,null,null,null,null,null,null,null,null,null,null,null,null,null,null,null,"　　ス、修理、運転および保守",null,null,null,null,null,null,null,null,null,null,null,null,null,null,null,null,null,null,null,null,null,null,null,null,null,null,null,null,null,null,null,null,null,null,null,null,null,null,"11　会員向け優待サービスの提供および斡旋"]
[null,"　いする場合がございます。",null,null,null,null,null,null,null,null,null,null,null,null,null,null,null,null,null,null,null,null,null,null,null,null,null,null,null,null,null,null,null,null,null,null,null,null,null,null,null,null,null,null,null,null,null,null,null,null,null,null,null,null,null,null,null,null,null,null,null,null,null,null,null,null,null,null,null,null,null,null,null,null,null,null,null,null,null,null,null,null,null,null,null,"４　蒸気、温水、冷水等の熱供給に関する事業　　　　　　　　　　　　　",null,null,null,null,null,null,null,null,null,null,null,null,null,null,null,null,null,null,null,null,null,null,null,null,null,null,null,null,null,null,null,null,null,null,null,null,null,null,"12　銀行代理業、電子決済等代行業その他金融サービス業"]
[null,null,null,null,null,null,null,null,null,null,null,null,null,null,null,null,null,null,null,null,null,null,null,null,null,null,null,null,null,null,null,null,null,null,null,null,null,null,null,null,null,null,null,null,null,null,null,null,null,null,null,null,null,null,null,null,null,null,null,null,null,null,null,null,null,null,null,null,null,null,null,null,null,null,null,null,null,null,null,null,null,null,null,null,null,"５　電気通信事業法に定める電気通信事業",null,null,null,null,null,null,null,null,null,null,null,null,null,null,null,null,null,null,null,null,null,null,null,null,null,null,null,null,null,null,null,null,null,null,null,null,null,null,"13　割賦販売法に定める信用購入あっせん"]
[null,"◇臨時電力の場合",null,null,null,null,null,null,null,null,null,null,null,null,null,null,null,null,null,null,null,null,null,null,null,null,null,null,null,null,null,null,null,null,null,null,null,null,null,null,null,null,null,null,null,null,null,null,null,null,null,null,null,null,null,null,null,null,null,null,null,null,null,null,null,null,null,null,null,null,null,null,null,null,null,null,null,null,null,null,null,null,null,null,null,"６　各種情報の収集、分析、処理、加工、提供および販売に関する事業",null,null,null,null,null,null,null,null,null,null,null,null,null,null,null,null,null,null,null,null,null,null,null,null,null,null,null,null,null,null,null,null,null,null,null,null,null,null,"14　資金決済に関する法律に定める前払式支払手段の発行および資金移動業"]
[null,"　→契約電力は、契約受電設備のみによって決定することを希望しますか。　",null,null,null,null,null,null,null,null,null,null,null,null,null,null,null,null,null,null,null,null,null,null,null,null,null,null,null,null,null,null,null,null,null,null,null,null,null,null,null,null,null,null,null,null,null,null,null,null,null,null,null,null,null,null,null,null,null,null,null,null,null,null,null,null,null,null,null,null,null,null,null,null,null,null,null,null,null,null,null,null,null,null,null,"　　ならびに広告事業",null,null,null,null,null,null,null,null,null,null,null,null,null,null,null,null,null,null,null,null,null,null,null,null,null,null,null,null,null,null,null,null,null,null,null,null,null,null,"15　損害保険代理業、自動車損害賠償保障法に基づく保険代理業および生命"]
[null,null,null,null,null,null,null,null,null,null,null,null,null,null,null,null,null,null,null,null,null,null,null,null,null,null,null,null,null,null,null,null,null,null,null,null,null,null,null,null,null,null,null,null,null,null,null,null,null,null,null,null,null,null,null,null,null,null,null,null,null,null,null,null,null,null,null,null,null,null,null,null,null,null,null,null,null,null,null,null,null,null,null,null,null,"７　データプラットフォーム事業",null,null,null,null,null,null,null,null,null,null,null,null,null,null,null,null,null,null,null,null,null,null,null,null,null,null,null,null,null,null,null,null,null,null,null,null,null,null,"　　保険募集業その他保険媒介代理業、保険サービス業"]
[null,null,null,null,null,null,null,null,null,null,null,null,null,null,null,null,null,null,null,null,null,null,null,null,null,null,null,null,null,null,null,null,null,null,null,null,null,null,null,null,null,null,null,null,null,null,null,null,null,null,null,null,null,null,null,null,null,null,null,null,null,null,null,null,null,null,null,null,null,null,null,null,null,null,null,null,null,null,null,null,null,null,null,null,null,"８　コミュニティサポートインフラ事業",null,null,null,null,null,null,null,null,null,null,null,null,null,null,null,null,null,null,null,null,null,null,null,null,null,null,null,null,null,null,null,null,null,null,null,null,null,null,"16　前各号に附帯関連する事業"]
[]
["施工者\n（工事店名）",null,null,null,null,null,null,null,null,null,null,null,null,null,null,null,null,null,null,null,null,null,null,null,null,null,null,null,null,null,null,null,null,null,null,"担当者",null,null,null,null,null,null,null,null,null,null,null,null,null,null,null,null,null,null,null,null,null,null,null,null,"工事店コード",null,null,null,null,null,null,null,null,null,null,null,null,null,null,null,null,null,null,null,null,null,null,null,null,"ＴＥＬ",null,null,null,null,null,null,null,null,null,null,null,null,null,null,null,null,null,null,null,null,null,null,null,null,null,null,null,null,null,null,null,null,null,null,null,null,null,null,"Ｅメールアドレス"]
[]
["営２５０(ａ)　保管期限失効後８年"]
[]
[]
[]
[]
[]
[]
[]
[]
[]
[]
[]
[]
[]
[]
[]
[]
[]
[]
[]
[]
[]
[]
[]
[]
[]
[]
[]
[]
[]
[]
[]
[]
[]
[]
[]
[]
[]
[]
[]
[]
[]
[]
[]
[]
[]
[]
[]
[]
[]
[]
[]
[]
[]
[]
[]
[]
[]
[]
[null,null,null,null,null,null,null,null,null,null,null,null,null,null,null,null,null,null,null,null,null,null,null,null,null,null,null,null,null,null,null,null,null,null,null,null,null,null,null,null,null,null,null,null,null,null,null,null,null,null,null,null,null,null,null,null,null,null,6]
[null,null,null,null,null,null,null,null,null,null,null,null,null,null,"高圧業務用電力",null,null,null,null,null,null,null,null,null,null,null,null,null,null,null,"ＦＲプランＡ",null,null,null,null,null,null,null,null,null,null,null,null,null,null,null,null,null,null,null,null,null,null,null,null,null,null,null,0.1,null,null,null,null,null,null,null,null,null,"単結線"]
[null,null,null,null,null,null,null,null,null,null,null,null,null,null,"高圧電力",null,null,null,null,null,null,null,null,null,null,null,null,null,null,null,"ＦＲプランＢ",null,null,null,null,null,null,null,null,null,null,null,null,null,null,null,null,null,null,null,null,null,null,null,null,null,null,null,0.2,null,null,null,null,null,null,null,null,null,"Δ－Δ"]
[null,null,null,null,null,null,null,null,null,null,null,null,null,null,"臨時電力（高圧業務用電力）",null,null,null,null,null,null,null,null,null,null,null,null,null,null,null,"ＦＲプランＣ",null,null,null,null,null,null,null,null,null,null,null,null,null,null,null,null,null,null,null,null,null,null,null,null,null,null,null,"0.1,0.2",null,null,null,null,null,null,null,null,null,"Ｙ－Δ"]
[null,null,null,null,null,null,null,null,null,null,null,null,null,null,"臨時電力（高圧電力500kW未満）",null,null,null,null,null,null,null,null,null,null,null,null,null,null,null,"ＷＥプランＡ",null,null,null,null,null,null,null,null,null,null,null,null,null,null,null,null,null,null,null,null,null,null,null,null,null,null,null,0.4,null,null,null,null,null,null,null,null,null,"Ｖ"]
[null,null,null,null,null,null,null,null,null,null,null,null,null,null,"予備電力（予備線）",null,null,null,null,null,null,null,null,null,null,null,null,null,null,null,"ＷＥプランＢ",null,null,null,null,null,null,null,null,null,null,null,null,null,null,null,null,null,null,null,null,null,null,null,null,null,null,null,3]
[null,null,null,null,null,null,null,null,null,null,null,null,null,null,"予備電力（予備電源）",null,null,null,null,null,null,null,null,null,null,null,null,null,null,null,"ＷＥプランＣ",null,null,null,null,null,null,null,null,null,null,null,null,null,null,null,null,null,null,null,null,null,null,null,null,null,null,null,null,null,null,null,null,null,null,null,null,null,"屋外"]
[null,null,null,null,null,null,null,null,null,null,null,null,null,null,"業務用自家発補給電力",null,null,null,null,null,null,null,null,null,null,null,null,null,null,null,"ＴＯＵ",null,null,null,null,null,null,null,null,null,null,null,null,null,null,null,null,null,null,null,null,null,null,null,null,null,null,null,null,null,null,null,null,null,null,null,null,null,"その他（屋内等）"]
[null,null,null,null,null,null,null,null,null,null,null,null,null,null,"自家発補給電力",null,null,null,null,null,null,null,null,null,null,null,null,null,null,null,"ＴＯＵ２"]
[null,null,null,null,null,null,null,null,null,null,null,null,null,null,null,null,null,null,null,null,null,null,null,null,null,null,null,null,null,null,"第１種プランＬ",null,null,null,null,null,null,null,null,null,null,null,null,null,null,null,null,null,null,null,null,null,null,null,null,null,null,null,null,null,null,null,null,null,null,null,null,null,"第１柱　樹脂ＢＯＸ"]
[null,null,null,null,null,null,null,null,null,null,null,null,null,null,null,null,null,null,null,null,null,null,null,null,null,null,null,null,null,null,"第１種プランＨ",null,null,null,null,null,null,null,null,null,null,null,null,null,null,null,null,null,null,null,null,null,null,null,null,null,null,null,null,null,null,null,null,null,null,null,null,null,"第１柱　金属ＢＯＸ"]
[null,null,null,null,null,null,null,null,null,null,null,null,null,null,"（業務用電力のお客さま）",null,null,null,null,null,null,null,null,null,null,null,null,null,null,null,"第２種プランＬ",null,null,null,null,null,null,null,null,null,null,null,null,null,null,null,null,null,null,null,null,null,null,null,null,null,null,null,null,null,null,null,null,null,null,null,null,null,"屋外（屋上含まず）　樹脂ＢＯＸ"]
[null,null,null,null,null,null,null,null,null,null,null,null,null,null,"劇場・娯楽",null,null,null,null,null,null,null,null,null,null,null,null,null,null,null,"第２種プランＨ",null,null,null,null,null,null,null,null,null,null,null,null,null,null,null,null,null,null,null,null,null,null,null,null,null,null,null,null,null,null,null,null,null,null,null,null,null,"屋外（屋上含まず）　金属ＢＯＸ"]
[null,null,null,null,null,null,null,null,null,null,null,null,null,null,"医療・保険",null,null,null,null,null,null,null,null,null,null,null,null,null,null,null,null,null,null,null,null,null,null,null,null,null,null,null,null,null,null,null,null,null,null,null,null,null,null,null,null,null,null,null,null,null,null,null,null,null,null,null,null,null,"屋外（屋上含まず）　キュービクル内樹脂ＢＯＸ（メーターキュービクル含む）"]
[null,null,null,null,null,null,null,null,null,null,null,null,null,null,"新聞・出版",null,null,null,null,null,null,null,null,null,null,null,null,null,null,null,null,null,null,null,null,null,null,null,null,null,null,null,null,null,null,null,null,null,null,null,null,null,null,null,null,null,null,null,null,null,null,null,null,null,null,null,null,null,"屋外（屋上含まず）　キュービクル内金属ＢＯＸ"]
[null,null,null,null,null,null,null,null,null,null,null,null,null,null,"学校・研究所",null,null,null,null,null,null,null,null,null,null,null,null,null,null,null,null,null,null,null,null,null,null,null,null,null,null,null,null,null,null,null,null,null,null,null,null,null,null,null,null,null,null,null,null,null,null,null,null,null,null,null,null,null,"屋内（地下含まず）"]
[null,null,null,null,null,null,null,null,null,null,null,null,null,null,"金融・保険・リース業",null,null,null,null,null,null,null,null,null,null,null,null,null,null,null,null,null,null,null,null,null,null,null,null,null,null,null,null,null,null,null,null,null,null,null,null,null,null,null,null,null,null,null,null,null,null,null,null,null,null,null,null,null,"屋上"]
[null,null,null,null,null,null,null,null,null,null,null,null,null,null,"旅館・ホテル",null,null,null,null,null,null,null,null,null,null,null,null,null,null,null,null,null,null,null,null,null,null,null,null,null,null,null,null,null,null,null,null,null,null,null,null,null,null,null,null,null,null,null,null,null,null,null,null,null,null,null,null,null,"判別不可（地下に設置されている場合も含む）"]
[null,null,null,null,null,null,null,null,null,null,null,null,null,null,"百貨店・商店"]
[null,null,null,null,null,null,null,null,null,null,null,null,null,null,"鉄道",null,null,null,null,null,null,null,null,null,null,null,null,null,null,null,null,null,null,null,null,null,null,null,null,null,null,null,null,null,null,null,null,null,null,null,null,null,null,null,null,null,null,null,null,null,null,null,null,null,null,null,null,null,"ライトグレー"]
[null,null,null,null,null,null,null,null,null,null,null,null,null,null,"通信",null,null,null,null,null,null,null,null,null,null,null,null,null,null,null,null,null,null,null,null,null,null,null,null,null,null,null,null,null,null,null,null,null,null,null,null,null,null,null,null,null,null,null,null,null,null,null,null,null,null,null,null,null,"アイボリー"]
[null,null,null,null,null,null,null,null,null,null,null,null,null,null,"運輸",null,null,null,null,null,null,null,null,null,null,null,null,null,null,null,null,null,null,null,null,null,null,null,null,null,null,null,null,null,null,null,null,null,null,null,null,null,null,null,null,null,null,null,null,null,null,null,null,null,null,null,null,null,"ライトブラウン"]
[null,null,null,null,null,null,null,null,null,null,null,null,null,null,"倉庫"]
[null,null,null,null,null,null,null,null,null,null,null,null,null,null,"不動産業"]
[null,null,null,null,null,null,null,null,null,null,null,null,null,null,"食料品"]
[null,null,null,null,null,null,null,null,null,null,null,null,null,null,"繊維"]
[null,null,null,null,null,null,null,null,null,null,null,null,null,null,"紙パルプ"]
[null,null,null,null,null,null,null,null,null,null,null,null,null,null,"化学"]
[null,null,null,null,null,null,null,null,null,null,null,null,null,null,"石油石炭"]
[null,null,null,null,null,null,null,null,null,null,null,null,null,null,"農業"]
[null,null,null,null,null,null,null,null,null,null,null,null,null,null,"林業"]
[null,null,null,null,null,null,null,null,null,null,null,null,null,null,"建設業"]
[null,null,null,null,null,null,null,null,null,null,null,null,null,null,"電気"]
[null,null,null,null,null,null,null,null,null,null,null,null,null,null,"ガス"]
[null,null,null,null,null,null,null,null,null,null,null,null,null,null,"水道"]
[null,null,null,null,null,null,null,null,null,null,null,null,null,null,"公務"]
[null,null,null,null,null,null,null,null,null,null,null,null,null,null,"その他"]
[null,null,null,null,null,null,null,null,null,null,null,null,null,null,"　　"]
[null,null,null,null,null,null,null,null,null,null,null,null,null,null,"（高圧電力のお客さま）"]
[null,null,null,null,null,null,null,null,null,null,null,null,null,null,"百貨店・商店"]
[null,null,null,null,null,null,null,null,null,null,null,null,null,null,"鉄道"]
[null,null,null,null,null,null,null,null,null,null,null,null,null,null,"運輸"]
[null,null,null,null,null,null,null,null,null,null,null,null,null,null,"倉庫"]
[null,null,null,null,null,null,null,null,null,null,null,null,null,null,"食料品"]
[null,null,null,null,null,null,null,null,null,null,null,null,null,null,"繊維"]
[null,null,null,null,null,null,null,null,null,null,null,null,null,null,"紙パルプ"]
[null,null,null,null,null,null,null,null,null,null,null,null,null,null,"化学"]
[null,null,null,null,null,null,null,null,null,null,null,null,null,null,"石油石炭"]
[null,null,null,null,null,null,null,null,null,null,null,null,null,null,"ゴム"]
[null,null,null,null,null,null,null,null,null,null,null,null,null,null,"窯業土石"]
[null,null,null,null,null,null,null,null,null,null,null,null,null,null,"鉄鋼"]
[null,null,null,null,null,null,null,null,null,null,null,null,null,null,"非鉄金属"]
[null,null,null,null,null,null,null,null,null,null,null,null,null,null,"機械"]
[null,null,null,null,null,null,null,null,null,null,null,null,null,null,"電気機械"]
[null,null,null,null,null,null,null,null,null,null,null,null,null,null,"輸送用機械"]
[null,null,null,null,null,null,null,null,null,null,null,null,null,null,"精密機械"]
[null,null,null,null,null,null,null,null,null,null,null,null,null,null,"木材"]
[null,null,null,null,null,null,null,null,null,null,null,null,null,null,"印刷・出版"]
[null,null,null,null,null,null,null,null,null,null,null,null,null,null,"金属製品"]
[null,null,null,null,null,null,null,null,null,null,null,null,null,null,"その他製造業"]
[null,null,null,null,null,null,null,null,null,null,null,null,null,null,"鉱業"]
[null,null,null,null,null,null,null,null,null,null,null,null,null,null,"農業"]
[null,null,null,null,null,null,null,null,null,null,null,null,null,null,"林業"]
[null,null,null,null,null,null,null,null,null,null,null,null,null,null,"漁業"]
[null,null,null,null,null,null,null,null,null,null,null,null,null,null,"建設業"]
[null,null,null,null,null,null,null,null,null,null,null,null,null,null,"電気"]
[null,null,null,null,null,null,null,null,null,null,null,null,null,null,"ガス"]
[null,null,null,null,null,null,null,null,null,null,null,null,null,null,"水道"]
[null,null,null,null,null,null,null,null,null,null,null,null,null,null,"公務"]
[null,null,null,null,null,null,null,null,null,null,null,null,null,null,"その他"]